Department Family,Entity,Payment Date,Expense Type,Expense Area,Supplier,Transaction Number,Amount,Invoice Description,Postal Code,"Admin, Programme, Capital Expenditure"
Food Standards Agency,Food Standards Agency,01/07/2013,Project Programme expenditure,Analysis & Research Branch,C E F A S,8002902,"23,078.40",PO 409509 FY 12/13 RETENTION INVOICE C3193,NR33 0HT,Programme
Food Standards Agency,Food Standards Agency,01/07/2013,Project Programme expenditure,Analysis & Research Branch,Mintel International Group Ltd,M16225,"23,625.00","PO 413091 SUB ALLOCATIONS, DRINK, FOOD AND FOOD SERVICE",EC4V 6RN,Programme
Food Standards Agency,Food Standards Agency,01/07/2013,Project Programme expenditure,Analysis & Research Branch,Mintel International Group Ltd,M16225,"4,725.00","PO 413091 SUB ALLOCATIONS, DRINK, FOOD AND FOOD SERVICE",EC4V 6RN,Programme
Food Standards Agency,Food Standards Agency,01/07/2013,Analysis of samples (non Trichinella),Approvals & Veterinary Advice,Food & Environment Research Agency,F0030236,"53,890.00",PO 412792- ANALYSIS OF 317 SAMPLES BETWEEN 12-30TH MARCH 2013 FOR PHENYLBUTAZONE,YO41 1LZ,Programme
Food Standards Agency,Food Standards Agency,01/07/2013,Analysis of samples (non Trichinella),Approvals & Veterinary Advice,Food & Environment Research Agency,F0030236,"10,778.00",PO 412792- ANALYSIS OF 317 SAMPLES BETWEEN 12-30TH MARCH 2013 FOR PHENYLBUTAZONE,YO41 1LZ,Programme
Food Standards Agency,Food Standards Agency,01/07/2013,Analysis of samples (non Trichinella),Approvals & Veterinary Advice,Food & Environment Research Agency,F0030237,"62,580.00",PO 412791- ANALYSIS OF 364 SAMPLES BETWEEN 04-25TH APRIL 2013 FOR PHENYLBUTAZONE,YO41 1LZ,Programme
Food Standards Agency,Food Standards Agency,01/07/2013,Analysis of samples (non Trichinella),Approvals & Veterinary Advice,Food & Environment Research Agency,F0030237,"12,516.00",PO 412791- ANALYSIS OF 364 SAMPLES BETWEEN 04-25TH APRIL 2013 FOR PHENYLBUTAZONE,YO41 1LZ,Programme
Food Standards Agency,Food Standards Agency,01/07/2013,Programme Evidence & Research Expenditure,Chemical Risk Assessment Unit,MRC Human Nutrition Research Unit,MRC11048,"36,000.00",PO 413371 - DELIVERABLE 05/01 & FIRST QUARTERLY PROJECT REPORT,CB1 9NL,Programme
Food Standards Agency,Food Standards Agency,01/07/2013,Publicity charges,Comms Directors Office,Creative Choice CIC,755,"31,423.00","PO 413196 - SERVICES, SUPPLIER: KINDRED",SW1H 0DJ,Admin
Food Standards Agency,Food Standards Agency,01/07/2013,Publicity charges,Comms Directors Office,Creative Choice CIC,755,"6,284.60","PO 413196 - SERVICES, SUPPLIER: KINDRED",SW1H 0DJ,Admin
Food Standards Agency,Food Standards Agency,01/07/2013,ASD support services,Finance Group Director & Branch,DEFRA,1000024992,"81,335.00",PO 413765 SSD CHARGE 13/14 Q1 APR-JUN 13,YO1 7PX,Admin
Food Standards Agency,Food Standards Agency,01/07/2013,ASD support services,Finance Group Director & Branch,DEFRA,1000024992,"16,267.00",PO 413765 SSD CHARGE 13/14 Q1 APR-JUN 13,YO1 7PX,Admin
Food Standards Agency,Food Standards Agency,03/07/2013,Programme Evidence & Research Expenditure,Analysis & Research Branch,University Of Hertfordshire,54053,"25,852.40",PO 405913 4TH INSTALLMENT RESEARCH DOMESTIC KITCHEN PRACTICES,AL10 9AB,Programme
Food Standards Agency,Food Standards Agency,03/07/2013,Project Programme expenditure,Enforcement Policy,University Of Westminster,9801102,"29,728.00",PO 413615 - COMPLETION OF SITE VISITS,W1W 6UP,Programme
Food Standards Agency,Food Standards Agency,03/07/2013,Project Programme expenditure,Food Policy Strategy HoD,Quo Vadis Consulting Partners Ltd,983,"21,207.00",PO 409757 FSA RESEARCH PROJECT,KT13 8NA,Programme
Food Standards Agency,Food Standards Agency,03/07/2013,IT Development projects,IT Strategy,Capita Secure Information Solutions Ltd,92993416,"93,952.79",PO 412481 APPLICATION DEVELOPMENT 1/4/13- 30/04/13,SN14 0TW,Admin
Food Standards Agency,Food Standards Agency,03/07/2013,IT Development projects,IT Strategy,Capita Secure Information Solutions Ltd,92993416,"93,952.79",PO 412481 APPLICATION DEVELOPMENT 1/5/13-31/5/13,SN14 0TW,Admin
Food Standards Agency,Food Standards Agency,04/07/2013,Travel UK ,Additives,Redfern Travel Ltd,58396,88.83,CONSOLIDATED MAY REDFERN TRAVEL INVOICE,BD1 3AZ,Admin
Food Standards Agency,Food Standards Agency,04/07/2013,International Travel,Additives,Redfern Travel Ltd,58396,346.8,CONSOLIDATED MAY REDFERN TRAVEL INVOICE,BD1 3AZ,Admin
Food Standards Agency,Food Standards Agency,04/07/2013,Subsistence UK,Additives,Redfern Travel Ltd,059832A,1.56,CONSOLIDATED TRAVEL REDFERN ENG JUNE WEEK 1,BD1 3AZ,Admin
Food Standards Agency,Food Standards Agency,04/07/2013,International Travel,Additives,Redfern Travel Ltd,059832B,225.9,CONSOLIDATED TRAVEL REDFERN ENG JUNE WEEK 2,BD1 3AZ,Admin
Food Standards Agency,Food Standards Agency,04/07/2013,Subsistence UK,Additives,Redfern Travel Ltd,059832B,1.56,CONSOLIDATED TRAVEL REDFERN ENG JUNE WEEK 2,BD1 3AZ,Admin
Food Standards Agency,Food Standards Agency,04/07/2013,Travel UK ,Additives,Redfern Travel Ltd,059832C,199.78,CONSOLIDATED TRAVEL REDFERN ENG JUNE WEEK 3,BD1 3AZ,Admin
Food Standards Agency,Food Standards Agency,04/07/2013,Travel UK ,Agricultural Process & Environmental Contaminants & Strategy,Redfern Travel Ltd,58396,593.07,CONSOLIDATED MAY REDFERN TRAVEL INVOICE,BD1 3AZ,Admin
Food Standards Agency,Food Standards Agency,04/07/2013,International Travel,Agricultural Process & Environmental Contaminants & Strategy,Redfern Travel Ltd,58396,399.9,CONSOLIDATED MAY REDFERN TRAVEL INVOICE,BD1 3AZ,Admin
Food Standards Agency,Food Standards Agency,04/07/2013,International Travel,Agricultural Process & Environmental Contaminants & Strategy,Redfern Travel Ltd,58396,"1,010.15",CONSOLIDATED MAY REDFERN TRAVEL INVOICE,BD1 3AZ,Admin
Food Standards Agency,Food Standards Agency,04/07/2013,Subsistence UK,Agricultural Process & Environmental Contaminants & Strategy,Redfern Travel Ltd,58396,150.3,CONSOLIDATED MAY REDFERN TRAVEL INVOICE,BD1 3AZ,Admin
Food Standards Agency,Food Standards Agency,04/07/2013,Travel UK ,Agricultural Process & Environmental Contaminants & Strategy,Redfern Travel Ltd,059832A,10.63,CONSOLIDATED TRAVEL REDFERN ENG JUNE WEEK 1,BD1 3AZ,Admin
Food Standards Agency,Food Standards Agency,04/07/2013,International Travel,Agricultural Process & Environmental Contaminants & Strategy,Redfern Travel Ltd,059832A,21.07,CONSOLIDATED TRAVEL REDFERN ENG JUNE WEEK 1,BD1 3AZ,Admin
Food Standards Agency,Food Standards Agency,04/07/2013,Subsistence UK,Agricultural Process & Environmental Contaminants & Strategy,Redfern Travel Ltd,059832A,151.56,CONSOLIDATED TRAVEL REDFERN ENG JUNE WEEK 1,BD1 3AZ,Admin
Food Standards Agency,Food Standards Agency,04/07/2013,Travel UK ,Agricultural Process & Environmental Contaminants & Strategy,Redfern Travel Ltd,059832B,96.51,CONSOLIDATED TRAVEL REDFERN ENG JUNE WEEK 2,BD1 3AZ,Admin
Food Standards Agency,Food Standards Agency,04/07/2013,International Travel,Agricultural Process & Environmental Contaminants & Strategy,Redfern Travel Ltd,059832B,19.92,CONSOLIDATED TRAVEL REDFERN ENG JUNE WEEK 2,BD1 3AZ,Admin
Food Standards Agency,Food Standards Agency,04/07/2013,International Travel,Allergens,Redfern Travel Ltd,58396,120.9,CONSOLIDATED MAY REDFERN TRAVEL INVOICE,BD1 3AZ,Admin
Food Standards Agency,Food Standards Agency,04/07/2013,International Subsistence,Allergens,Redfern Travel Ltd,58396,88.7,CONSOLIDATED MAY REDFERN TRAVEL INVOICE,BD1 3AZ,Admin
Food Standards Agency,Food Standards Agency,04/07/2013,Travel UK ,Analysis & Research Branch,Redfern Travel Ltd,58396,686.73,CONSOLIDATED MAY REDFERN TRAVEL INVOICE,BD1 3AZ,Admin
Food Standards Agency,Food Standards Agency,04/07/2013,International Travel,Analysis & Research Branch,Redfern Travel Ltd,58396,10.63,CONSOLIDATED MAY REDFERN TRAVEL INVOICE,BD1 3AZ,Admin
Food Standards Agency,Food Standards Agency,04/07/2013,International Travel,Analysis & Research Branch,Redfern Travel Ltd,58396,476.45,CONSOLIDATED MAY REDFERN TRAVEL INVOICE,BD1 3AZ,Admin
Food Standards Agency,Food Standards Agency,04/07/2013,Travel UK ,Analysis & Research Branch,Redfern Travel Ltd,059832A,95.81,CONSOLIDATED TRAVEL REDFERN ENG JUNE WEEK 1,BD1 3AZ,Admin
Food Standards Agency,Food Standards Agency,04/07/2013,Subsistence UK,Analysis & Research Branch,Redfern Travel Ltd,059832A,189.12,CONSOLIDATED TRAVEL REDFERN ENG JUNE WEEK 1,BD1 3AZ,Admin
Food Standards Agency,Food Standards Agency,04/07/2013,Travel UK ,Animal Feed     ,Redfern Travel Ltd,58396,"3,352.07",CONSOLIDATED MAY REDFERN TRAVEL INVOICE,BD1 3AZ,Admin
Food Standards Agency,Food Standards Agency,04/07/2013,Subsistence UK,Animal Feed     ,Redfern Travel Ltd,58396,981.72,CONSOLIDATED MAY REDFERN TRAVEL INVOICE,BD1 3AZ,Admin
Food Standards Agency,Food Standards Agency,04/07/2013,Travel UK ,Animal Feed     ,Redfern Travel Ltd,059832A,482.52,CONSOLIDATED TRAVEL REDFERN ENG JUNE WEEK 1,BD1 3AZ,Admin
Food Standards Agency,Food Standards Agency,04/07/2013,Subsistence UK,Animal Feed     ,Redfern Travel Ltd,059832A,436.8,CONSOLIDATED TRAVEL REDFERN ENG JUNE WEEK 1,BD1 3AZ,Admin
Food Standards Agency,Food Standards Agency,04/07/2013,Travel UK ,Animal Feed     ,Redfern Travel Ltd,059832B,288.51,CONSOLIDATED TRAVEL REDFERN ENG JUNE WEEK 2,BD1 3AZ,Admin
Food Standards Agency,Food Standards Agency,04/07/2013,Subsistence UK,Animal Feed     ,Redfern Travel Ltd,059832B,481.44,CONSOLIDATED TRAVEL REDFERN ENG JUNE WEEK 2,BD1 3AZ,Admin
Food Standards Agency,Food Standards Agency,04/07/2013,Travel UK ,Animal Feed     ,Redfern Travel Ltd,059832C,617.67,CONSOLIDATED TRAVEL REDFERN ENG JUNE WEEK 3,BD1 3AZ,Admin
Food Standards Agency,Food Standards Agency,04/07/2013,Subsistence UK,Animal Feed     ,Redfern Travel Ltd,059832C,723.56,CONSOLIDATED TRAVEL REDFERN ENG JUNE WEEK 3,BD1 3AZ,Admin
Food Standards Agency,Food Standards Agency,04/07/2013,Travel UK ,Animal Feed Branch,Redfern Travel Ltd,58396,262.88,CONSOLIDATED MAY REDFERN TRAVEL INVOICE,BD1 3AZ,Admin
Food Standards Agency,Food Standards Agency,04/07/2013,International Travel,Animal Feed Branch,Redfern Travel Ltd,58396,440.8,CONSOLIDATED MAY REDFERN TRAVEL INVOICE,BD1 3AZ,Admin
Food Standards Agency,Food Standards Agency,04/07/2013,International Subsistence,Animal Feed Branch,Redfern Travel Ltd,58396,1.3,CONSOLIDATED MAY REDFERN TRAVEL INVOICE,BD1 3AZ,Admin
Food Standards Agency,Food Standards Agency,04/07/2013,Travel UK ,Animal Feed Branch,Redfern Travel Ltd,059832C,52.34,CONSOLIDATED TRAVEL REDFERN ENG JUNE WEEK 3,BD1 3AZ,Admin
Food Standards Agency,Food Standards Agency,04/07/2013,International Travel,Animal Feed Branch,Redfern Travel Ltd,059832C,249.9,CONSOLIDATED TRAVEL REDFERN ENG JUNE WEEK 3,BD1 3AZ,Admin
Food Standards Agency,Food Standards Agency,04/07/2013,Travel UK ,Approvals & Veterinary Advice,Redfern Travel Ltd,58396,"4,608.00",CONSOLIDATED MAY REDFERN TRAVEL INVOICE,BD1 3AZ,Programme
Food Standards Agency,Food Standards Agency,04/07/2013,Subsistence UK,Approvals & Veterinary Advice,Redfern Travel Ltd,58396,732.53,CONSOLIDATED MAY REDFERN TRAVEL INVOICE,BD1 3AZ,Programme
Food Standards Agency,Food Standards Agency,04/07/2013,Travel UK ,Approvals & Veterinary Advice,Redfern Travel Ltd,059832A,887.96,CONSOLIDATED TRAVEL REDFERN ENG JUNE WEEK 1,BD1 3AZ,Programme
Food Standards Agency,Food Standards Agency,04/07/2013,Subsistence UK,Approvals & Veterinary Advice,Redfern Travel Ltd,059832A,856.92,CONSOLIDATED TRAVEL REDFERN ENG JUNE WEEK 1,BD1 3AZ,Programme
Food Standards Agency,Food Standards Agency,04/07/2013,Travel UK ,Approvals & Veterinary Advice,Redfern Travel Ltd,059832B,580.58,CONSOLIDATED TRAVEL REDFERN ENG JUNE WEEK 2,BD1 3AZ,Programme
Food Standards Agency,Food Standards Agency,04/07/2013,Subsistence UK,Approvals & Veterinary Advice,Redfern Travel Ltd,059832B,675.33,CONSOLIDATED TRAVEL REDFERN ENG JUNE WEEK 2,BD1 3AZ,Programme
Food Standards Agency,Food Standards Agency,04/07/2013,Travel UK ,Approvals & Veterinary Advice,Redfern Travel Ltd,059832C,"1,221.47",CONSOLIDATED TRAVEL REDFERN ENG JUNE WEEK 3,BD1 3AZ,Programme
Food Standards Agency,Food Standards Agency,04/07/2013,Subsistence UK,Approvals & Veterinary Advice,Redfern Travel Ltd,059832C,543.78,CONSOLIDATED TRAVEL REDFERN ENG JUNE WEEK 3,BD1 3AZ,Programme
Food Standards Agency,Food Standards Agency,04/07/2013,Travel UK ,Area 1 Scotland - Cluster 11,Redfern Travel Ltd,58396,330.37,CONSOLIDATED MAY REDFERN TRAVEL INVOICE,BD1 3AZ,Programme
Food Standards Agency,Food Standards Agency,04/07/2013,Travel UK ,Area 1 Scotland - Cluster 11,Redfern Travel Ltd,059832A,120.14,CONSOLIDATED TRAVEL REDFERN ENG JUNE WEEK 1,BD1 3AZ,Programme
Food Standards Agency,Food Standards Agency,04/07/2013,Subsistence UK,Area 1 Scotland - Cluster 11,Redfern Travel Ltd,059832B,73.32,CONSOLIDATED TRAVEL REDFERN ENG JUNE WEEK 2,BD1 3AZ,Programme
Food Standards Agency,Food Standards Agency,04/07/2013,Travel UK ,Area 1 Scotland - Cluster 11,Redfern Travel Ltd,059832C,200.23,CONSOLIDATED TRAVEL REDFERN ENG JUNE WEEK 3,BD1 3AZ,Programme
Food Standards Agency,Food Standards Agency,04/07/2013,Travel UK ,Area 1 Scotland - Cluster 12,Redfern Travel Ltd,58396,669.43,CONSOLIDATED MAY REDFERN TRAVEL INVOICE,BD1 3AZ,Programme
Food Standards Agency,Food Standards Agency,04/07/2013,Subsistence UK,Area 1 Scotland - Cluster 12,Redfern Travel Ltd,58396,195.2,CONSOLIDATED MAY REDFERN TRAVEL INVOICE,BD1 3AZ,Programme
Food Standards Agency,Food Standards Agency,04/07/2013,Travel UK ,Area 1 Scotland - Cluster 12,Redfern Travel Ltd,059832B,189.93,CONSOLIDATED TRAVEL REDFERN ENG JUNE WEEK 2,BD1 3AZ,Programme
Food Standards Agency,Food Standards Agency,04/07/2013,Subsistence UK,Area 1 Scotland - Cluster 12,Redfern Travel Ltd,059832B,73.32,CONSOLIDATED TRAVEL REDFERN ENG JUNE WEEK 2,BD1 3AZ,Programme
Food Standards Agency,Food Standards Agency,04/07/2013,Subsistence UK,Area 1 Scotland - Cluster 12,Redfern Travel Ltd,059832C,67.56,CONSOLIDATED TRAVEL REDFERN ENG JUNE WEEK 3,BD1 3AZ,Programme
Food Standards Agency,Food Standards Agency,04/07/2013,Travel UK ,Area 1 Scotland - Cluster 13,Redfern Travel Ltd,58396,694.87,CONSOLIDATED MAY REDFERN TRAVEL INVOICE,BD1 3AZ,Programme
Food Standards Agency,Food Standards Agency,04/07/2013,Subsistence UK,Area 1 Scotland - Cluster 13,Redfern Travel Ltd,58396,254.36,CONSOLIDATED MAY REDFERN TRAVEL INVOICE,BD1 3AZ,Programme
Food Standards Agency,Food Standards Agency,04/07/2013,Travel UK ,Area 1 Scotland - Cluster 13,Redfern Travel Ltd,059832B,233.02,CONSOLIDATED TRAVEL REDFERN ENG JUNE WEEK 2,BD1 3AZ,Programme
Food Standards Agency,Food Standards Agency,04/07/2013,Travel UK ,Area 1 Scotland - Cluster 14,Redfern Travel Ltd,059832A,53.13,CONSOLIDATED TRAVEL REDFERN ENG JUNE WEEK 1,BD1 3AZ,Programme
Food Standards Agency,Food Standards Agency,04/07/2013,Travel UK ,Area 1 Scotland - Cluster 14,Redfern Travel Ltd,059832C,473.13,CONSOLIDATED TRAVEL REDFERN ENG JUNE WEEK 3,BD1 3AZ,Programme
Food Standards Agency,Food Standards Agency,04/07/2013,Travel UK ,Area 1 Scotland - Cluster 15,Redfern Travel Ltd,58396,"1,028.17",CONSOLIDATED MAY REDFERN TRAVEL INVOICE,BD1 3AZ,Programme
Food Standards Agency,Food Standards Agency,04/07/2013,Travel UK ,Area 2 Wales - Cluster 21,Redfern Travel Ltd,58396,311.01,CONSOLIDATED MAY REDFERN TRAVEL INVOICE,BD1 3AZ,Programme
Food Standards Agency,Food Standards Agency,04/07/2013,Subsistence UK,Area 2 Wales - Cluster 21,Redfern Travel Ltd,58396,103.45,CONSOLIDATED MAY REDFERN TRAVEL INVOICE,BD1 3AZ,Programme
Food Standards Agency,Food Standards Agency,04/07/2013,Subsistence UK,Area 2 Wales - Cluster 21,Redfern Travel Ltd,059832A,70.56,CONSOLIDATED TRAVEL REDFERN ENG JUNE WEEK 1,BD1 3AZ,Programme
Food Standards Agency,Food Standards Agency,04/07/2013,Travel UK ,Area 2 Wales - Cluster 21,Redfern Travel Ltd,059832B,199.48,CONSOLIDATED TRAVEL REDFERN ENG JUNE WEEK 2,BD1 3AZ,Programme
Food Standards Agency,Food Standards Agency,04/07/2013,Subsistence UK,Area 2 Wales - Cluster 21,Redfern Travel Ltd,059832B,373.52,CONSOLIDATED TRAVEL REDFERN ENG JUNE WEEK 2,BD1 3AZ,Programme
Food Standards Agency,Food Standards Agency,04/07/2013,Subsistence UK,Area 2 Wales - Cluster 21,Redfern Travel Ltd,059832C,273.96,CONSOLIDATED TRAVEL REDFERN ENG JUNE WEEK 3,BD1 3AZ,Programme
Food Standards Agency,Food Standards Agency,04/07/2013,Travel UK ,Area 2 Wales - Cluster 22,Redfern Travel Ltd,58396,39.29,CONSOLIDATED MAY REDFERN TRAVEL INVOICE,BD1 3AZ,Programme
Food Standards Agency,Food Standards Agency,04/07/2013,Travel UK ,Area 2 Wales - Cluster 23,Redfern Travel Ltd,58396,236.76,CONSOLIDATED MAY REDFERN TRAVEL INVOICE,BD1 3AZ,Programme
Food Standards Agency,Food Standards Agency,04/07/2013,Travel UK ,Area 2 Wales - Cluster 23,Redfern Travel Ltd,059832A,166.16,CONSOLIDATED TRAVEL REDFERN ENG JUNE WEEK 1,BD1 3AZ,Programme
Food Standards Agency,Food Standards Agency,04/07/2013,Subsistence UK,Area 2 Wales - Cluster 23,Redfern Travel Ltd,059832A,486.88,CONSOLIDATED TRAVEL REDFERN ENG JUNE WEEK 1,BD1 3AZ,Programme
Food Standards Agency,Food Standards Agency,04/07/2013,Travel UK ,Area 2 Wales - Cluster 23,Redfern Travel Ltd,059832B,62.13,CONSOLIDATED TRAVEL REDFERN ENG JUNE WEEK 2,BD1 3AZ,Programme
Food Standards Agency,Food Standards Agency,04/07/2013,Subsistence UK,Area 2 Wales - Cluster 23,Redfern Travel Ltd,059832B,918.04,CONSOLIDATED TRAVEL REDFERN ENG JUNE WEEK 2,BD1 3AZ,Programme
Food Standards Agency,Food Standards Agency,04/07/2013,Travel UK ,Area 3 North West England - Cluster 31,Redfern Travel Ltd,58396,176.42,CONSOLIDATED MAY REDFERN TRAVEL INVOICE,BD1 3AZ,Programme
Food Standards Agency,Food Standards Agency,04/07/2013,Subsistence UK,Area 3 North West England - Cluster 31,Redfern Travel Ltd,58396,73.06,CONSOLIDATED MAY REDFERN TRAVEL INVOICE,BD1 3AZ,Programme
Food Standards Agency,Food Standards Agency,04/07/2013,Travel UK ,Area 3 North West England - Cluster 31,Redfern Travel Ltd,059832A,91.61,CONSOLIDATED TRAVEL REDFERN ENG JUNE WEEK 1,BD1 3AZ,Programme
Food Standards Agency,Food Standards Agency,04/07/2013,Subsistence UK,Area 3 North West England - Cluster 33,Redfern Travel Ltd,58396,61.6,CONSOLIDATED MAY REDFERN TRAVEL INVOICE,BD1 3AZ,Programme
Food Standards Agency,Food Standards Agency,04/07/2013,Subsistence UK,Area 3 North West England - Cluster 33,Redfern Travel Ltd,059832A,145.08,CONSOLIDATED TRAVEL REDFERN ENG JUNE WEEK 1,BD1 3AZ,Programme
Food Standards Agency,Food Standards Agency,04/07/2013,Subsistence UK,Area 3 North West England - Cluster 33,Redfern Travel Ltd,059832B,71.56,CONSOLIDATED TRAVEL REDFERN ENG JUNE WEEK 2,BD1 3AZ,Programme
Food Standards Agency,Food Standards Agency,04/07/2013,Travel UK ,Area 3 North West England - Cluster 33,Redfern Travel Ltd,059832C,30.5,CONSOLIDATED TRAVEL REDFERN ENG JUNE WEEK 3,BD1 3AZ,Programme
Food Standards Agency,Food Standards Agency,04/07/2013,Subsistence UK,Area 3 North West England - Cluster 33,Redfern Travel Ltd,059832C,70.56,CONSOLIDATED TRAVEL REDFERN ENG JUNE WEEK 3,BD1 3AZ,Programme
Food Standards Agency,Food Standards Agency,04/07/2013,Travel UK ,Area 3 North West England - Cluster 34,Redfern Travel Ltd,58396,390.89,CONSOLIDATED MAY REDFERN TRAVEL INVOICE,BD1 3AZ,Programme
Food Standards Agency,Food Standards Agency,04/07/2013,Subsistence UK,Area 3 North West England - Cluster 34,Redfern Travel Ltd,58396,922.82,CONSOLIDATED MAY REDFERN TRAVEL INVOICE,BD1 3AZ,Programme
Food Standards Agency,Food Standards Agency,04/07/2013,Subsistence UK,Area 3 North West England - Cluster 34,Redfern Travel Ltd,059832A,73.32,CONSOLIDATED TRAVEL REDFERN ENG JUNE WEEK 1,BD1 3AZ,Programme
Food Standards Agency,Food Standards Agency,04/07/2013,Travel UK ,Area 3 North West England - Cluster 34,Redfern Travel Ltd,059832B,-60.86,CONSOLIDATED TRAVEL REDFERN ENG JUNE WEEK 2,BD1 3AZ,Programme
Food Standards Agency,Food Standards Agency,04/07/2013,Travel UK ,Area 3 North West England - Cluster 34,Redfern Travel Ltd,059832C,53.49,CONSOLIDATED TRAVEL REDFERN ENG JUNE WEEK 3,BD1 3AZ,Programme
Food Standards Agency,Food Standards Agency,04/07/2013,Travel UK ,Area 3 North West England - Cluster 36,Redfern Travel Ltd,58396,382.67,CONSOLIDATED MAY REDFERN TRAVEL INVOICE,BD1 3AZ,Programme
Food Standards Agency,Food Standards Agency,04/07/2013,Subsistence UK,Area 3 North West England - Cluster 36,Redfern Travel Ltd,58396,67.3,CONSOLIDATED MAY REDFERN TRAVEL INVOICE,BD1 3AZ,Programme
Food Standards Agency,Food Standards Agency,04/07/2013,Subsistence UK,Area 3 North West England - Cluster 36,Redfern Travel Ltd,059832A,393,CONSOLIDATED TRAVEL REDFERN ENG JUNE WEEK 1,BD1 3AZ,Programme
Food Standards Agency,Food Standards Agency,04/07/2013,Subsistence UK,Area 3 North West England - Cluster 36,Redfern Travel Ltd,059832B,"1,443.96",CONSOLIDATED TRAVEL REDFERN ENG JUNE WEEK 2,BD1 3AZ,Programme
Food Standards Agency,Food Standards Agency,04/07/2013,Subsistence UK,Area 4 North East England - Cluster 41,Redfern Travel Ltd,58396,73.06,CONSOLIDATED MAY REDFERN TRAVEL INVOICE,BD1 3AZ,Programme
Food Standards Agency,Food Standards Agency,04/07/2013,Subsistence UK,Area 4 North East England - Cluster 41,Redfern Travel Ltd,059832B,1.56,CONSOLIDATED TRAVEL REDFERN ENG JUNE WEEK 2,BD1 3AZ,Programme
Food Standards Agency,Food Standards Agency,04/07/2013,Travel UK ,Area 4 North East England - Cluster 42,Redfern Travel Ltd,059832C,125.07,CONSOLIDATED TRAVEL REDFERN ENG JUNE WEEK 3,BD1 3AZ,Programme
Food Standards Agency,Food Standards Agency,04/07/2013,Travel UK ,Area 4 North East England - Cluster 43,Redfern Travel Ltd,58396,51.3,CONSOLIDATED MAY REDFERN TRAVEL INVOICE,BD1 3AZ,Programme
Food Standards Agency,Food Standards Agency,04/07/2013,Subsistence UK,Area 4 North East England - Cluster 43,Redfern Travel Ltd,58396,1.3,CONSOLIDATED MAY REDFERN TRAVEL INVOICE,BD1 3AZ,Programme
Food Standards Agency,Food Standards Agency,04/07/2013,Subsistence UK,Area 4 North East England - Cluster 43,Redfern Travel Ltd,059832A,439.68,CONSOLIDATED TRAVEL REDFERN ENG JUNE WEEK 1,BD1 3AZ,Programme
Food Standards Agency,Food Standards Agency,04/07/2013,Subsistence UK,Area 4 North East England - Cluster 43,Redfern Travel Ltd,059832B,79.56,CONSOLIDATED TRAVEL REDFERN ENG JUNE WEEK 2,BD1 3AZ,Programme
Food Standards Agency,Food Standards Agency,04/07/2013,Travel UK ,Area 4 North East England - Cluster 44,Redfern Travel Ltd,58396,14.53,CONSOLIDATED MAY REDFERN TRAVEL INVOICE,BD1 3AZ,Programme
Food Standards Agency,Food Standards Agency,04/07/2013,Subsistence UK,Area 4 North East England - Cluster 44,Redfern Travel Ltd,58396,73.06,CONSOLIDATED MAY REDFERN TRAVEL INVOICE,BD1 3AZ,Programme
Food Standards Agency,Food Standards Agency,04/07/2013,Subsistence UK,Area 4 North East England - Cluster 44,Redfern Travel Ltd,059832A,188.06,CONSOLIDATED TRAVEL REDFERN ENG JUNE WEEK 1,BD1 3AZ,Programme
Food Standards Agency,Food Standards Agency,04/07/2013,Travel UK ,Area 4 North East England - Cluster 44,Redfern Travel Ltd,059832B,27.11,CONSOLIDATED TRAVEL REDFERN ENG JUNE WEEK 2,BD1 3AZ,Programme
Food Standards Agency,Food Standards Agency,04/07/2013,Travel UK ,Area 4 North East England - Cluster 44,Redfern Travel Ltd,059832C,360.45,CONSOLIDATED TRAVEL REDFERN ENG JUNE WEEK 3,BD1 3AZ,Programme
Food Standards Agency,Food Standards Agency,04/07/2013,Travel UK ,Area 4 North East England - Cluster 45,Redfern Travel Ltd,58396,111.49,CONSOLIDATED MAY REDFERN TRAVEL INVOICE,BD1 3AZ,Programme
Food Standards Agency,Food Standards Agency,04/07/2013,Subsistence UK,Area 4 North East England - Cluster 45,Redfern Travel Ltd,58396,67.3,CONSOLIDATED MAY REDFERN TRAVEL INVOICE,BD1 3AZ,Programme
Food Standards Agency,Food Standards Agency,04/07/2013,Travel UK ,Area 4 North East England - Cluster 46,Redfern Travel Ltd,58396,147.06,CONSOLIDATED MAY REDFERN TRAVEL INVOICE,BD1 3AZ,Programme
Food Standards Agency,Food Standards Agency,04/07/2013,Subsistence UK,Area 4 North East England - Cluster 46,Redfern Travel Ltd,58396,73.06,CONSOLIDATED MAY REDFERN TRAVEL INVOICE,BD1 3AZ,Programme
Food Standards Agency,Food Standards Agency,04/07/2013,Travel UK ,Area 4 North East England - Cluster 46,Redfern Travel Ltd,059832A,72.22,CONSOLIDATED TRAVEL REDFERN ENG JUNE WEEK 1,BD1 3AZ,Programme
Food Standards Agency,Food Standards Agency,04/07/2013,Subsistence UK,Area 4 North East England - Cluster 46,Redfern Travel Ltd,059832A,111.12,CONSOLIDATED TRAVEL REDFERN ENG JUNE WEEK 1,BD1 3AZ,Programme
Food Standards Agency,Food Standards Agency,04/07/2013,Travel UK ,Area 4 North East England - Cluster 46,Redfern Travel Ltd,059832B,130.95,CONSOLIDATED TRAVEL REDFERN ENG JUNE WEEK 2,BD1 3AZ,Programme
Food Standards Agency,Food Standards Agency,04/07/2013,Subsistence UK,Area 4 North East England - Cluster 46,Redfern Travel Ltd,059832B,180.12,CONSOLIDATED TRAVEL REDFERN ENG JUNE WEEK 2,BD1 3AZ,Programme
Food Standards Agency,Food Standards Agency,04/07/2013,Travel UK ,Area 4 North East England - Cluster 48,Redfern Travel Ltd,58396,149.26,CONSOLIDATED MAY REDFERN TRAVEL INVOICE,BD1 3AZ,Programme
Food Standards Agency,Food Standards Agency,04/07/2013,Subsistence UK,Area 4 North East England - Cluster 48,Redfern Travel Ltd,58396,1.3,CONSOLIDATED MAY REDFERN TRAVEL INVOICE,BD1 3AZ,Programme
Food Standards Agency,Food Standards Agency,04/07/2013,Travel UK ,Area 5 South West England - Cluster 51,Redfern Travel Ltd,58396,114.4,CONSOLIDATED MAY REDFERN TRAVEL INVOICE,BD1 3AZ,Programme
Food Standards Agency,Food Standards Agency,04/07/2013,Travel UK ,Area 5 South West England - Cluster 51,Redfern Travel Ltd,059832A,332.1,CONSOLIDATED TRAVEL REDFERN ENG JUNE WEEK 1,BD1 3AZ,Programme
Food Standards Agency,Food Standards Agency,04/07/2013,Subsistence UK,Area 5 South West England - Cluster 51,Redfern Travel Ltd,059832B,82.56,CONSOLIDATED TRAVEL REDFERN ENG JUNE WEEK 2,BD1 3AZ,Programme
Food Standards Agency,Food Standards Agency,04/07/2013,Travel UK ,Area 5 South West England - Cluster 52,Redfern Travel Ltd,58396,142.01,CONSOLIDATED MAY REDFERN TRAVEL INVOICE,BD1 3AZ,Programme
Food Standards Agency,Food Standards Agency,04/07/2013,Subsistence UK,Area 5 South West England - Cluster 52,Redfern Travel Ltd,58396,492.79,CONSOLIDATED MAY REDFERN TRAVEL INVOICE,BD1 3AZ,Programme
Food Standards Agency,Food Standards Agency,04/07/2013,Travel UK ,Area 5 South West England - Cluster 52,Redfern Travel Ltd,059832A,346,CONSOLIDATED TRAVEL REDFERN ENG JUNE WEEK 1,BD1 3AZ,Programme
Food Standards Agency,Food Standards Agency,04/07/2013,Subsistence UK,Area 5 South West England - Cluster 52,Redfern Travel Ltd,059832A,243.2,CONSOLIDATED TRAVEL REDFERN ENG JUNE WEEK 1,BD1 3AZ,Programme
Food Standards Agency,Food Standards Agency,04/07/2013,Subsistence UK,Area 5 South West England - Cluster 52,Redfern Travel Ltd,059832B,81.56,CONSOLIDATED TRAVEL REDFERN ENG JUNE WEEK 2,BD1 3AZ,Programme
Food Standards Agency,Food Standards Agency,04/07/2013,Travel UK ,Area 5 South West England - Cluster 52,Redfern Travel Ltd,059832C,401.93,CONSOLIDATED TRAVEL REDFERN ENG JUNE WEEK 3,BD1 3AZ,Programme
Food Standards Agency,Food Standards Agency,04/07/2013,Travel UK ,Area 5 South West England - Cluster 53,Redfern Travel Ltd,58396,250.05,CONSOLIDATED MAY REDFERN TRAVEL INVOICE,BD1 3AZ,Programme
Food Standards Agency,Food Standards Agency,04/07/2013,Subsistence UK,Area 5 South West England - Cluster 53,Redfern Travel Ltd,58396,169.85,CONSOLIDATED MAY REDFERN TRAVEL INVOICE,BD1 3AZ,Programme
Food Standards Agency,Food Standards Agency,04/07/2013,Subsistence UK,Area 5 South West England - Cluster 53,Redfern Travel Ltd,059832A,308.37,CONSOLIDATED TRAVEL REDFERN ENG JUNE WEEK 1,BD1 3AZ,Programme
Food Standards Agency,Food Standards Agency,04/07/2013,Subsistence UK,Area 5 South West England - Cluster 53,Redfern Travel Ltd,059832B,280.56,CONSOLIDATED TRAVEL REDFERN ENG JUNE WEEK 2,BD1 3AZ,Programme
Food Standards Agency,Food Standards Agency,04/07/2013,Subsistence UK,Area 5 South West England - Cluster 53,Redfern Travel Ltd,059832C,298.56,CONSOLIDATED TRAVEL REDFERN ENG JUNE WEEK 3,BD1 3AZ,Programme
Food Standards Agency,Food Standards Agency,04/07/2013,Travel UK ,Area 5 South West England - Cluster 54,Redfern Travel Ltd,58396,81.44,CONSOLIDATED MAY REDFERN TRAVEL INVOICE,BD1 3AZ,Programme
Food Standards Agency,Food Standards Agency,04/07/2013,Subsistence UK,Area 5 South West England - Cluster 54,Redfern Travel Ltd,58396,213.69,CONSOLIDATED MAY REDFERN TRAVEL INVOICE,BD1 3AZ,Programme
Food Standards Agency,Food Standards Agency,04/07/2013,Travel UK ,Area 5 South West England - Cluster 54,Redfern Travel Ltd,059832B,139.93,CONSOLIDATED TRAVEL REDFERN ENG JUNE WEEK 2,BD1 3AZ,Programme
Food Standards Agency,Food Standards Agency,04/07/2013,Travel UK ,Area 5 South West England - Cluster 55,Redfern Travel Ltd,58396,466.21,CONSOLIDATED MAY REDFERN TRAVEL INVOICE,BD1 3AZ,Programme
Food Standards Agency,Food Standards Agency,04/07/2013,Subsistence UK,Area 5 South West England - Cluster 55,Redfern Travel Ltd,58396,79.33,CONSOLIDATED MAY REDFERN TRAVEL INVOICE,BD1 3AZ,Programme
Food Standards Agency,Food Standards Agency,04/07/2013,Travel UK ,Area 5 South West England - Cluster 55,Redfern Travel Ltd,059832A,80.26,CONSOLIDATED TRAVEL REDFERN ENG JUNE WEEK 1,BD1 3AZ,Programme
Food Standards Agency,Food Standards Agency,04/07/2013,Subsistence UK,Area 5 South West England - Cluster 55,Redfern Travel Ltd,059832A,425.52,CONSOLIDATED TRAVEL REDFERN ENG JUNE WEEK 1,BD1 3AZ,Programme
Food Standards Agency,Food Standards Agency,04/07/2013,Subsistence UK,Area 5 South West England - Cluster 55,Redfern Travel Ltd,059832B,513.84,CONSOLIDATED TRAVEL REDFERN ENG JUNE WEEK 2,BD1 3AZ,Programme
Food Standards Agency,Food Standards Agency,04/07/2013,Subsistence UK,Area 5 South West England - Cluster 56,Redfern Travel Ltd,58396,79.33,CONSOLIDATED MAY REDFERN TRAVEL INVOICE,BD1 3AZ,Programme
Food Standards Agency,Food Standards Agency,04/07/2013,Subsistence UK,Area 5 South West England - Cluster 56,Redfern Travel Ltd,059832B,221.12,CONSOLIDATED TRAVEL REDFERN ENG JUNE WEEK 2,BD1 3AZ,Programme
Food Standards Agency,Food Standards Agency,04/07/2013,Travel UK ,Area 5 South West England - Cluster 56,Redfern Travel Ltd,059832C,25.94,CONSOLIDATED TRAVEL REDFERN ENG JUNE WEEK 3,BD1 3AZ,Programme
Food Standards Agency,Food Standards Agency,04/07/2013,Subsistence UK,Area 5 South West England - Cluster 56,Redfern Travel Ltd,059832C,81.56,CONSOLIDATED TRAVEL REDFERN ENG JUNE WEEK 3,BD1 3AZ,Programme
Food Standards Agency,Food Standards Agency,04/07/2013,Travel UK ,Area 5 South West England - Cluster 57,Redfern Travel Ltd,58396,"1,819.42",CONSOLIDATED MAY REDFERN TRAVEL INVOICE,BD1 3AZ,Programme
Food Standards Agency,Food Standards Agency,04/07/2013,Subsistence UK,Area 5 South West England - Cluster 57,Redfern Travel Ltd,58396,529.56,CONSOLIDATED MAY REDFERN TRAVEL INVOICE,BD1 3AZ,Programme
Food Standards Agency,Food Standards Agency,04/07/2013,Subsistence UK,Area 5 South West England - Cluster 57,Redfern Travel Ltd,58396,79.33,CONSOLIDATED MAY REDFERN TRAVEL INVOICE,BD1 3AZ,Programme
Food Standards Agency,Food Standards Agency,04/07/2013,Travel UK ,Area 5 South West England - Cluster 57,Redfern Travel Ltd,059832A,281.93,CONSOLIDATED TRAVEL REDFERN ENG JUNE WEEK 1,BD1 3AZ,Programme
Food Standards Agency,Food Standards Agency,04/07/2013,Subsistence UK,Area 5 South West England - Cluster 57,Redfern Travel Ltd,059832A,493.08,CONSOLIDATED TRAVEL REDFERN ENG JUNE WEEK 1,BD1 3AZ,Programme
Food Standards Agency,Food Standards Agency,04/07/2013,Travel UK ,Area 5 South West England - Cluster 57,Redfern Travel Ltd,059832B,248.5,CONSOLIDATED TRAVEL REDFERN ENG JUNE WEEK 2,BD1 3AZ,Programme
Food Standards Agency,Food Standards Agency,04/07/2013,Subsistence UK,Area 5 South West England - Cluster 57,Redfern Travel Ltd,059832B,752.16,CONSOLIDATED TRAVEL REDFERN ENG JUNE WEEK 2,BD1 3AZ,Programme
Food Standards Agency,Food Standards Agency,04/07/2013,Subsistence UK,Area 5 South West England - Cluster 57,Redfern Travel Ltd,059832B,167.12,CONSOLIDATED TRAVEL REDFERN ENG JUNE WEEK 2,BD1 3AZ,Programme
Food Standards Agency,Food Standards Agency,04/07/2013,Travel UK ,Area 5 South West England - Cluster 57,Redfern Travel Ltd,059832C,-63.38,CONSOLIDATED TRAVEL REDFERN ENG JUNE WEEK 3,BD1 3AZ,Programme
Food Standards Agency,Food Standards Agency,04/07/2013,Subsistence UK,Area 5 South West England - Cluster 57,Redfern Travel Ltd,059832C,166.56,CONSOLIDATED TRAVEL REDFERN ENG JUNE WEEK 3,BD1 3AZ,Programme
Food Standards Agency,Food Standards Agency,04/07/2013,Travel UK ,Area 6 South East England - Cluster 61,Redfern Travel Ltd,58396,72.64,CONSOLIDATED MAY REDFERN TRAVEL INVOICE,BD1 3AZ,Programme
Food Standards Agency,Food Standards Agency,04/07/2013,Subsistence UK,Area 6 South East England - Cluster 61,Redfern Travel Ltd,58396,1.3,CONSOLIDATED MAY REDFERN TRAVEL INVOICE,BD1 3AZ,Programme
Food Standards Agency,Food Standards Agency,04/07/2013,Subsistence UK,Area 6 South East England - Cluster 61,Redfern Travel Ltd,059832A,176.16,CONSOLIDATED TRAVEL REDFERN ENG JUNE WEEK 1,BD1 3AZ,Programme
Food Standards Agency,Food Standards Agency,04/07/2013,Travel UK ,Area 6 South East England - Cluster 61,Redfern Travel Ltd,059832B,205.32,CONSOLIDATED TRAVEL REDFERN ENG JUNE WEEK 2,BD1 3AZ,Programme
Food Standards Agency,Food Standards Agency,04/07/2013,Subsistence UK,Area 6 South East England - Cluster 61,Redfern Travel Ltd,059832C,89.43,CONSOLIDATED TRAVEL REDFERN ENG JUNE WEEK 3,BD1 3AZ,Programme
Food Standards Agency,Food Standards Agency,04/07/2013,Travel UK ,Area 6 South East England - Cluster 62,Redfern Travel Ltd,58396,430.83,CONSOLIDATED MAY REDFERN TRAVEL INVOICE,BD1 3AZ,Programme
Food Standards Agency,Food Standards Agency,04/07/2013,Subsistence UK,Area 6 South East England - Cluster 62,Redfern Travel Ltd,58396,154.66,CONSOLIDATED MAY REDFERN TRAVEL INVOICE,BD1 3AZ,Programme
Food Standards Agency,Food Standards Agency,04/07/2013,Travel UK ,Area 6 South East England - Cluster 62,Redfern Travel Ltd,059832A,123.77,CONSOLIDATED TRAVEL REDFERN ENG JUNE WEEK 1,BD1 3AZ,Programme
Food Standards Agency,Food Standards Agency,04/07/2013,Subsistence UK,Area 6 South East England - Cluster 62,Redfern Travel Ltd,059832B,73.32,CONSOLIDATED TRAVEL REDFERN ENG JUNE WEEK 2,BD1 3AZ,Programme
Food Standards Agency,Food Standards Agency,04/07/2013,Travel UK ,Area 6 South East England - Cluster 62,Redfern Travel Ltd,059832C,108.31,CONSOLIDATED TRAVEL REDFERN ENG JUNE WEEK 3,BD1 3AZ,Programme
Food Standards Agency,Food Standards Agency,04/07/2013,International Travel,Area 6 South East England - Cluster 62,Redfern Travel Ltd,059832C,10.63,CONSOLIDATED TRAVEL REDFERN ENG JUNE WEEK 3,BD1 3AZ,Programme
Food Standards Agency,Food Standards Agency,04/07/2013,Subsistence UK,Area 6 South East England - Cluster 62,Redfern Travel Ltd,059832C,66.56,CONSOLIDATED TRAVEL REDFERN ENG JUNE WEEK 3,BD1 3AZ,Programme
Food Standards Agency,Food Standards Agency,04/07/2013,Travel UK ,Area 6 South East England - Cluster 63,Redfern Travel Ltd,58396,322.86,CONSOLIDATED MAY REDFERN TRAVEL INVOICE,BD1 3AZ,Programme
Food Standards Agency,Food Standards Agency,04/07/2013,Travel UK ,Area 6 South East England - Cluster 63,Redfern Travel Ltd,059832A,41.17,CONSOLIDATED TRAVEL REDFERN ENG JUNE WEEK 1,BD1 3AZ,Programme
Food Standards Agency,Food Standards Agency,04/07/2013,Subsistence UK,Area 6 South East England - Cluster 63,Redfern Travel Ltd,059832A,321.12,CONSOLIDATED TRAVEL REDFERN ENG JUNE WEEK 1,BD1 3AZ,Programme
Food Standards Agency,Food Standards Agency,04/07/2013,Subsistence UK,Area 6 South East England - Cluster 63,Redfern Travel Ltd,059832B,241.14,CONSOLIDATED TRAVEL REDFERN ENG JUNE WEEK 2,BD1 3AZ,Programme
Food Standards Agency,Food Standards Agency,04/07/2013,Travel UK ,Area 6 South East England - Cluster 63,Redfern Travel Ltd,059832C,131.81,CONSOLIDATED TRAVEL REDFERN ENG JUNE WEEK 3,BD1 3AZ,Programme
Food Standards Agency,Food Standards Agency,04/07/2013,Subsistence UK,Area 6 South East England - Cluster 63,Redfern Travel Ltd,059832C,59.98,CONSOLIDATED TRAVEL REDFERN ENG JUNE WEEK 3,BD1 3AZ,Programme
Food Standards Agency,Food Standards Agency,04/07/2013,Travel UK ,Area 6 South East England - Cluster 64,Redfern Travel Ltd,58396,100.47,CONSOLIDATED MAY REDFERN TRAVEL INVOICE,BD1 3AZ,Programme
Food Standards Agency,Food Standards Agency,04/07/2013,Subsistence UK,Area 6 South East England - Cluster 64,Redfern Travel Ltd,58396,281.2,CONSOLIDATED MAY REDFERN TRAVEL INVOICE,BD1 3AZ,Programme
Food Standards Agency,Food Standards Agency,04/07/2013,Travel UK ,Area 6 South East England - Cluster 64,Redfern Travel Ltd,059832A,40.98,CONSOLIDATED TRAVEL REDFERN ENG JUNE WEEK 1,BD1 3AZ,Programme
Food Standards Agency,Food Standards Agency,04/07/2013,Travel UK ,Area 6 South East England - Cluster 64,Redfern Travel Ltd,059832B,155.55,CONSOLIDATED TRAVEL REDFERN ENG JUNE WEEK 2,BD1 3AZ,Programme
Food Standards Agency,Food Standards Agency,04/07/2013,Subsistence UK,Area 6 South East England - Cluster 64,Redfern Travel Ltd,059832B,151.56,CONSOLIDATED TRAVEL REDFERN ENG JUNE WEEK 2,BD1 3AZ,Programme
Food Standards Agency,Food Standards Agency,04/07/2013,Subsistence UK,Area 6 South East England - Cluster 64,Redfern Travel Ltd,059832C,55.84,CONSOLIDATED TRAVEL REDFERN ENG JUNE WEEK 3,BD1 3AZ,Programme
Food Standards Agency,Food Standards Agency,04/07/2013,Travel UK ,Area 6 South East England - Cluster 65,Redfern Travel Ltd,58396,636.89,CONSOLIDATED MAY REDFERN TRAVEL INVOICE,BD1 3AZ,Programme
Food Standards Agency,Food Standards Agency,04/07/2013,Subsistence UK,Area 6 South East England - Cluster 65,Redfern Travel Ltd,58396,587.48,CONSOLIDATED MAY REDFERN TRAVEL INVOICE,BD1 3AZ,Programme
Food Standards Agency,Food Standards Agency,04/07/2013,Travel UK ,Area 6 South East England - Cluster 65,Redfern Travel Ltd,059832A,35.26,CONSOLIDATED TRAVEL REDFERN ENG JUNE WEEK 1,BD1 3AZ,Programme
Food Standards Agency,Food Standards Agency,04/07/2013,Travel UK ,Area 6 South East England - Cluster 65,Redfern Travel Ltd,059832B,240.99,CONSOLIDATED TRAVEL REDFERN ENG JUNE WEEK 2,BD1 3AZ,Programme
Food Standards Agency,Food Standards Agency,04/07/2013,Subsistence UK,Area 6 South East England - Cluster 65,Redfern Travel Ltd,059832B,67.56,CONSOLIDATED TRAVEL REDFERN ENG JUNE WEEK 2,BD1 3AZ,Programme
Food Standards Agency,Food Standards Agency,04/07/2013,Travel UK ,Area 6 South East England - Cluster 65,Redfern Travel Ltd,059832C,119.89,CONSOLIDATED TRAVEL REDFERN ENG JUNE WEEK 3,BD1 3AZ,Programme
Food Standards Agency,Food Standards Agency,04/07/2013,International Travel,Area 6 South East England - Cluster 65,Redfern Travel Ltd,059832C,73.78,CONSOLIDATED TRAVEL REDFERN ENG JUNE WEEK 3,BD1 3AZ,Programme
Food Standards Agency,Food Standards Agency,04/07/2013,Travel UK ,Area 6 South East England - Cluster 66,Redfern Travel Ltd,58396,143.54,CONSOLIDATED MAY REDFERN TRAVEL INVOICE,BD1 3AZ,Programme
Food Standards Agency,Food Standards Agency,04/07/2013,Travel UK ,Area 6 South East England - Cluster 66,Redfern Travel Ltd,059832A,20.9,CONSOLIDATED TRAVEL REDFERN ENG JUNE WEEK 1,BD1 3AZ,Programme
Food Standards Agency,Food Standards Agency,04/07/2013,Travel UK ,Area 6 South East England - Cluster 66,Redfern Travel Ltd,059832B,38.65,CONSOLIDATED TRAVEL REDFERN ENG JUNE WEEK 2,BD1 3AZ,Programme
Food Standards Agency,Food Standards Agency,04/07/2013,Subsistence UK,Area 6 South East England - Cluster 66,Redfern Travel Ltd,059832B,58.56,CONSOLIDATED TRAVEL REDFERN ENG JUNE WEEK 2,BD1 3AZ,Programme
Food Standards Agency,Food Standards Agency,04/07/2013,Travel UK ,Area 6 South East England - Cluster 66,Redfern Travel Ltd,059832C,110.86,CONSOLIDATED TRAVEL REDFERN ENG JUNE WEEK 3,BD1 3AZ,Programme
Food Standards Agency,Food Standards Agency,04/07/2013,Subsistence UK,Area 6 South East England - Cluster 66,Redfern Travel Ltd,059832C,90.21,CONSOLIDATED TRAVEL REDFERN ENG JUNE WEEK 3,BD1 3AZ,Programme
Food Standards Agency,Food Standards Agency,04/07/2013,Travel UK ,Central Operations Hub,Redfern Travel Ltd,58396,"4,471.76",CONSOLIDATED MAY REDFERN TRAVEL INVOICE,BD1 3AZ,Programme
Food Standards Agency,Food Standards Agency,04/07/2013,International Travel,Central Operations Hub,Redfern Travel Ltd,58396,235.07,CONSOLIDATED MAY REDFERN TRAVEL INVOICE,BD1 3AZ,Programme
Food Standards Agency,Food Standards Agency,04/07/2013,International Travel,Central Operations Hub,Redfern Travel Ltd,58396,147.8,CONSOLIDATED MAY REDFERN TRAVEL INVOICE,BD1 3AZ,Programme
Food Standards Agency,Food Standards Agency,04/07/2013,Subsistence UK,Central Operations Hub,Redfern Travel Ltd,58396,"2,666.41",CONSOLIDATED MAY REDFERN TRAVEL INVOICE,BD1 3AZ,Programme
Food Standards Agency,Food Standards Agency,04/07/2013,Travel UK ,Central Operations Hub,Redfern Travel Ltd,059832A,944.64,CONSOLIDATED TRAVEL REDFERN ENG JUNE WEEK 1,BD1 3AZ,Programme
Food Standards Agency,Food Standards Agency,04/07/2013,Subsistence UK,Central Operations Hub,Redfern Travel Ltd,059832A,1802.61,CONSOLIDATED TRAVEL REDFERN ENG JUNE WEEK 1,BD1 3AZ,Programme
Food Standards Agency,Food Standards Agency,04/07/2013,Travel UK ,Central Operations Hub,Redfern Travel Ltd,059832B,626.24,CONSOLIDATED TRAVEL REDFERN ENG JUNE WEEK 2,BD1 3AZ,Programme
Food Standards Agency,Food Standards Agency,04/07/2013,Subsistence UK,Central Operations Hub,Redfern Travel Ltd,059832B,"1,264.28",CONSOLIDATED TRAVEL REDFERN ENG JUNE WEEK 2,BD1 3AZ,Programme
Food Standards Agency,Food Standards Agency,04/07/2013,Travel UK ,Central Operations Hub,Redfern Travel Ltd,059832C,"1,329.34",CONSOLIDATED TRAVEL REDFERN ENG JUNE WEEK 3,BD1 3AZ,Programme
Food Standards Agency,Food Standards Agency,04/07/2013,International Travel,Central Operations Hub,Redfern Travel Ltd,059832C,24.21,CONSOLIDATED TRAVEL REDFERN ENG JUNE WEEK 3,BD1 3AZ,Programme
Food Standards Agency,Food Standards Agency,04/07/2013,Subsistence UK,Central Operations Hub,Redfern Travel Ltd,059832C,"4,130.90",CONSOLIDATED TRAVEL REDFERN ENG JUNE WEEK 3,BD1 3AZ,Programme
Food Standards Agency,Food Standards Agency,04/07/2013,Subsistence UK,Central Operations Hub,Redfern Travel Ltd,059832C,157.06,CONSOLIDATED TRAVEL REDFERN ENG JUNE WEEK 3,BD1 3AZ,Programme
Food Standards Agency,Food Standards Agency,04/07/2013,Travel UK ,Chair & Deputy Chair,Redfern Travel Ltd,58396,507.24,CONSOLIDATED MAY REDFERN TRAVEL INVOICE,BD1 3AZ,Admin
Food Standards Agency,Food Standards Agency,04/07/2013,Subsistence UK,Chair & Deputy Chair,Redfern Travel Ltd,58396,2.6,CONSOLIDATED MAY REDFERN TRAVEL INVOICE,BD1 3AZ,Admin
Food Standards Agency,Food Standards Agency,04/07/2013,Travel UK ,Chair & Deputy Chair,Redfern Travel Ltd,059832A,639.79,CONSOLIDATED TRAVEL REDFERN ENG JUNE WEEK 1,BD1 3AZ,Admin
Food Standards Agency,Food Standards Agency,04/07/2013,Subsistence UK,Chair & Deputy Chair,Redfern Travel Ltd,059832A,104.68,CONSOLIDATED TRAVEL REDFERN ENG JUNE WEEK 1,BD1 3AZ,Admin
Food Standards Agency,Food Standards Agency,04/07/2013,Travel UK ,Chair & Deputy Chair,Redfern Travel Ltd,059832B,174.56,CONSOLIDATED TRAVEL REDFERN ENG JUNE WEEK 2,BD1 3AZ,Admin
Food Standards Agency,Food Standards Agency,04/07/2013,Subsistence UK,Chair & Deputy Chair,Redfern Travel Ltd,059832B,305.54,CONSOLIDATED TRAVEL REDFERN ENG JUNE WEEK 2,BD1 3AZ,Admin
Food Standards Agency,Food Standards Agency,04/07/2013,Subsistence UK,Chair & Deputy Chair,Redfern Travel Ltd,059832C,153.55,CONSOLIDATED TRAVEL REDFERN ENG JUNE WEEK 3,BD1 3AZ,Admin
Food Standards Agency,Food Standards Agency,04/07/2013,Travel UK ,Chemical Risk Assessment Unit,Redfern Travel Ltd,58396,151.28,CONSOLIDATED MAY REDFERN TRAVEL INVOICE,BD1 3AZ,Admin
Food Standards Agency,Food Standards Agency,04/07/2013,Subsistence UK,Chemical Risk Assessment Unit,Redfern Travel Ltd,58396,158.36,CONSOLIDATED MAY REDFERN TRAVEL INVOICE,BD1 3AZ,Admin
Food Standards Agency,Food Standards Agency,04/07/2013,Subsistence UK,Chemical Risk Assessment Unit,Redfern Travel Ltd,059832B,85.56,CONSOLIDATED TRAVEL REDFERN ENG JUNE WEEK 2,BD1 3AZ,Admin
Food Standards Agency,Food Standards Agency,04/07/2013,Travel UK ,Chief Executive & Private Office,Redfern Travel Ltd,58396,"1,284.82",CONSOLIDATED MAY REDFERN TRAVEL INVOICE,BD1 3AZ,Admin
Food Standards Agency,Food Standards Agency,04/07/2013,Subsistence UK,Chief Executive & Private Office,Redfern Travel Ltd,58396,132.6,CONSOLIDATED MAY REDFERN TRAVEL INVOICE,BD1 3AZ,Admin
Food Standards Agency,Food Standards Agency,04/07/2013,Travel UK ,Chief Executive & Private Office,Redfern Travel Ltd,059832A,310.92,CONSOLIDATED TRAVEL REDFERN ENG JUNE WEEK 1,BD1 3AZ,Admin
Food Standards Agency,Food Standards Agency,04/07/2013,Subsistence UK,Chief Executive & Private Office,Redfern Travel Ltd,059832A,228.11,CONSOLIDATED TRAVEL REDFERN ENG JUNE WEEK 1,BD1 3AZ,Admin
Food Standards Agency,Food Standards Agency,04/07/2013,Travel UK ,Chief Executive & Private Office,Redfern Travel Ltd,059832B,68.53,CONSOLIDATED TRAVEL REDFERN ENG JUNE WEEK 2,BD1 3AZ,Admin
Food Standards Agency,Food Standards Agency,04/07/2013,Subsistence UK,Chief Executive & Private Office,Redfern Travel Ltd,059832B,121.56,CONSOLIDATED TRAVEL REDFERN ENG JUNE WEEK 2,BD1 3AZ,Admin
Food Standards Agency,Food Standards Agency,04/07/2013,Travel UK ,Chief Executive & Private Office,Redfern Travel Ltd,059832C,284.7,CONSOLIDATED TRAVEL REDFERN ENG JUNE WEEK 3,BD1 3AZ,Admin
Food Standards Agency,Food Standards Agency,04/07/2013,Subsistence UK,Chief Executive & Private Office,Redfern Travel Ltd,059832C,88.56,CONSOLIDATED TRAVEL REDFERN ENG JUNE WEEK 3,BD1 3AZ,Admin
Food Standards Agency,Food Standards Agency,04/07/2013,Travel UK ,Chief Scientist,Redfern Travel Ltd,58396,233.57,CONSOLIDATED MAY REDFERN TRAVEL INVOICE,BD1 3AZ,Admin
Food Standards Agency,Food Standards Agency,04/07/2013,International Travel,Chief Scientist,Redfern Travel Ltd,58396,110.9,CONSOLIDATED MAY REDFERN TRAVEL INVOICE,BD1 3AZ,Admin
Food Standards Agency,Food Standards Agency,04/07/2013,Travel UK ,Chief Scientist,Redfern Travel Ltd,059832A,199.43,CONSOLIDATED TRAVEL REDFERN ENG JUNE WEEK 1,BD1 3AZ,Admin
Food Standards Agency,Food Standards Agency,04/07/2013,Subsistence UK,Chief Scientist,Redfern Travel Ltd,059832A,1.56,CONSOLIDATED TRAVEL REDFERN ENG JUNE WEEK 1,BD1 3AZ,Admin
Food Standards Agency,Food Standards Agency,04/07/2013,Travel UK ,Chief Scientist,Redfern Travel Ltd,059832B,35.85,CONSOLIDATED TRAVEL REDFERN ENG JUNE WEEK 2,BD1 3AZ,Admin
Food Standards Agency,Food Standards Agency,04/07/2013,Travel UK ,Chief Scientist,Redfern Travel Ltd,059832C,90.9,CONSOLIDATED TRAVEL REDFERN ENG JUNE WEEK 3,BD1 3AZ,Admin
Food Standards Agency,Food Standards Agency,04/07/2013,Subsistence UK,Chief Scientist,Redfern Travel Ltd,059832C,70.56,CONSOLIDATED TRAVEL REDFERN ENG JUNE WEEK 3,BD1 3AZ,Admin
Food Standards Agency,Food Standards Agency,04/07/2013,Project Programme expenditure,Comms Directors Office,Redfern Travel Ltd,059832A,2.4,CONSOLIDATED TRAVEL REDFERN ENG JUNE WEEK 1,BD1 3AZ,Programme
Food Standards Agency,Food Standards Agency,04/07/2013,Project Programme expenditure,Comms Directors Office,Redfern Travel Ltd,059832B,133.75,CONSOLIDATED TRAVEL REDFERN ENG JUNE WEEK 2,BD1 3AZ,Programme
Food Standards Agency,Food Standards Agency,04/07/2013,Travel UK ,Comms Directors Office,Redfern Travel Ltd,58396,"2,341.72",CONSOLIDATED MAY REDFERN TRAVEL INVOICE,BD1 3AZ,Admin
Food Standards Agency,Food Standards Agency,04/07/2013,Subsistence UK,Comms Directors Office,Redfern Travel Ltd,58396,729.49,CONSOLIDATED MAY REDFERN TRAVEL INVOICE,BD1 3AZ,Admin
Food Standards Agency,Food Standards Agency,04/07/2013,Travel UK ,Comms Directors Office,Redfern Travel Ltd,059832A,781.4,CONSOLIDATED TRAVEL REDFERN ENG JUNE WEEK 1,BD1 3AZ,Admin
Food Standards Agency,Food Standards Agency,04/07/2013,International Travel,Comms Directors Office,Redfern Travel Ltd,059832A,125.22,CONSOLIDATED TRAVEL REDFERN ENG JUNE WEEK 1,BD1 3AZ,Admin
Food Standards Agency,Food Standards Agency,04/07/2013,Travel UK ,Comms Directors Office,Redfern Travel Ltd,059832B,276.56,CONSOLIDATED TRAVEL REDFERN ENG JUNE WEEK 2,BD1 3AZ,Admin
Food Standards Agency,Food Standards Agency,04/07/2013,Subsistence UK,Comms Directors Office,Redfern Travel Ltd,059832B,95.21,CONSOLIDATED TRAVEL REDFERN ENG JUNE WEEK 2,BD1 3AZ,Admin
Food Standards Agency,Food Standards Agency,04/07/2013,Travel UK ,Comms Directors Office,Redfern Travel Ltd,059832C,394.51,CONSOLIDATED TRAVEL REDFERN ENG JUNE WEEK 3,BD1 3AZ,Admin
Food Standards Agency,Food Standards Agency,04/07/2013,Subsistence UK,Comms Directors Office,Redfern Travel Ltd,059832C,95.21,CONSOLIDATED TRAVEL REDFERN ENG JUNE WEEK 3,BD1 3AZ,Admin
Food Standards Agency,Food Standards Agency,04/07/2013,Travel UK ,Delivery,Redfern Travel Ltd,58396,"1,788.40",CONSOLIDATED MAY REDFERN TRAVEL INVOICE,BD1 3AZ,Admin
Food Standards Agency,Food Standards Agency,04/07/2013,Subsistence UK,Delivery,Redfern Travel Ltd,58396,463.65,CONSOLIDATED MAY REDFERN TRAVEL INVOICE,BD1 3AZ,Admin
Food Standards Agency,Food Standards Agency,04/07/2013,Travel UK ,Delivery,Redfern Travel Ltd,059832A,246.24,CONSOLIDATED TRAVEL REDFERN ENG JUNE WEEK 1,BD1 3AZ,Admin
Food Standards Agency,Food Standards Agency,04/07/2013,Subsistence UK,Delivery,Redfern Travel Ltd,059832A,61.68,CONSOLIDATED TRAVEL REDFERN ENG JUNE WEEK 1,BD1 3AZ,Admin
Food Standards Agency,Food Standards Agency,04/07/2013,Travel UK ,Delivery,Redfern Travel Ltd,059832B,"1,163.22",CONSOLIDATED TRAVEL REDFERN ENG JUNE WEEK 2,BD1 3AZ,Admin
Food Standards Agency,Food Standards Agency,04/07/2013,Subsistence UK,Delivery,Redfern Travel Ltd,059832B,174.54,CONSOLIDATED TRAVEL REDFERN ENG JUNE WEEK 2,BD1 3AZ,Admin
Food Standards Agency,Food Standards Agency,04/07/2013,Travel UK ,Delivery,Redfern Travel Ltd,059832C,859.01,CONSOLIDATED TRAVEL REDFERN ENG JUNE WEEK 3,BD1 3AZ,Admin
Food Standards Agency,Food Standards Agency,04/07/2013,Subsistence UK,Delivery,Redfern Travel Ltd,059832C,373.5,CONSOLIDATED TRAVEL REDFERN ENG JUNE WEEK 3,BD1 3AZ,Admin
Food Standards Agency,Food Standards Agency,04/07/2013,Travel UK ,Enforcement Policy,Redfern Travel Ltd,58396,187.66,CONSOLIDATED MAY REDFERN TRAVEL INVOICE,BD1 3AZ,Admin
Food Standards Agency,Food Standards Agency,04/07/2013,Travel UK ,Enforcement Policy,Redfern Travel Ltd,059832A,62.33,CONSOLIDATED TRAVEL REDFERN ENG JUNE WEEK 1,BD1 3AZ,Admin
Food Standards Agency,Food Standards Agency,04/07/2013,Travel UK ,EU Regulatory Reform Branch,Redfern Travel Ltd,58396,193.43,CONSOLIDATED MAY REDFERN TRAVEL INVOICE,BD1 3AZ,Admin
Food Standards Agency,Food Standards Agency,04/07/2013,International Travel,EU Regulatory Reform Branch,Redfern Travel Ltd,58396,394.8,CONSOLIDATED MAY REDFERN TRAVEL INVOICE,BD1 3AZ,Admin
Food Standards Agency,Food Standards Agency,04/07/2013,Subsistence UK,EU Regulatory Reform Branch,Redfern Travel Ltd,58396,2.6,CONSOLIDATED MAY REDFERN TRAVEL INVOICE,BD1 3AZ,Admin
Food Standards Agency,Food Standards Agency,04/07/2013,International Travel,EU Regulatory Reform Branch,Redfern Travel Ltd,059832A,146.9,CONSOLIDATED TRAVEL REDFERN ENG JUNE WEEK 1,BD1 3AZ,Admin
Food Standards Agency,Food Standards Agency,04/07/2013,International Travel,EU Regulatory Reform Branch,Redfern Travel Ltd,059832A,263.2,CONSOLIDATED TRAVEL REDFERN ENG JUNE WEEK 1,BD1 3AZ,Admin
Food Standards Agency,Food Standards Agency,04/07/2013,International Travel,EU Regulatory Reform Branch,Redfern Travel Ltd,059832B,252.4,CONSOLIDATED TRAVEL REDFERN ENG JUNE WEEK 2,BD1 3AZ,Admin
Food Standards Agency,Food Standards Agency,04/07/2013,Subsistence UK,EU Regulatory Reform Branch,Redfern Travel Ltd,059832B,3.84,CONSOLIDATED TRAVEL REDFERN ENG JUNE WEEK 2,BD1 3AZ,Admin
Food Standards Agency,Food Standards Agency,04/07/2013,Subsistence UK,EU Regulatory Reform Branch,Redfern Travel Ltd,059832C,1.56,CONSOLIDATED TRAVEL REDFERN ENG JUNE WEEK 3,BD1 3AZ,Admin
Food Standards Agency,Food Standards Agency,04/07/2013,Travel UK ,European & International Strategy,Redfern Travel Ltd,58396,64.61,CONSOLIDATED MAY REDFERN TRAVEL INVOICE,BD1 3AZ,Admin
Food Standards Agency,Food Standards Agency,04/07/2013,International Travel,European & International Strategy,Redfern Travel Ltd,059832A,200.9,CONSOLIDATED TRAVEL REDFERN ENG JUNE WEEK 1,BD1 3AZ,Admin
Food Standards Agency,Food Standards Agency,04/07/2013,Subsistence UK,European & International Strategy,Redfern Travel Ltd,059832A,216.67,CONSOLIDATED TRAVEL REDFERN ENG JUNE WEEK 1,BD1 3AZ,Admin
Food Standards Agency,Food Standards Agency,04/07/2013,International Travel,European & International Strategy,Redfern Travel Ltd,059832B,387.82,CONSOLIDATED TRAVEL REDFERN ENG JUNE WEEK 2,BD1 3AZ,Admin
Food Standards Agency,Food Standards Agency,04/07/2013,International Subsistence,European & International Strategy,Redfern Travel Ltd,059832B,1.56,CONSOLIDATED TRAVEL REDFERN ENG JUNE WEEK 2,BD1 3AZ,Admin
Food Standards Agency,Food Standards Agency,04/07/2013,Travel UK ,Finance Group Director & Branch,Redfern Travel Ltd,58396,"2,547.65",CONSOLIDATED MAY REDFERN TRAVEL INVOICE,BD1 3AZ,Admin
Food Standards Agency,Food Standards Agency,04/07/2013,Subsistence UK,Finance Group Director & Branch,Redfern Travel Ltd,58396,146.3,CONSOLIDATED MAY REDFERN TRAVEL INVOICE,BD1 3AZ,Admin
Food Standards Agency,Food Standards Agency,04/07/2013,Travel UK ,Finance Group Director & Branch,Redfern Travel Ltd,059832A,562.44,CONSOLIDATED TRAVEL REDFERN ENG JUNE WEEK 1,BD1 3AZ,Admin
Food Standards Agency,Food Standards Agency,04/07/2013,Subsistence UK,Finance Group Director & Branch,Redfern Travel Ltd,059832A,434.9,CONSOLIDATED TRAVEL REDFERN ENG JUNE WEEK 1,BD1 3AZ,Admin
Food Standards Agency,Food Standards Agency,04/07/2013,Travel UK ,Finance Group Director & Branch,Redfern Travel Ltd,059832B,748.29,CONSOLIDATED TRAVEL REDFERN ENG JUNE WEEK 2,BD1 3AZ,Admin
Food Standards Agency,Food Standards Agency,04/07/2013,Subsistence UK,Finance Group Director & Branch,Redfern Travel Ltd,059832B,60.56,CONSOLIDATED TRAVEL REDFERN ENG JUNE WEEK 2,BD1 3AZ,Admin
Food Standards Agency,Food Standards Agency,04/07/2013,Travel UK ,Finance Group Director & Branch,Redfern Travel Ltd,059832C,"1,028.78",CONSOLIDATED TRAVEL REDFERN ENG JUNE WEEK 3,BD1 3AZ,Admin
Food Standards Agency,Food Standards Agency,04/07/2013,Subsistence UK,Finance Group Director & Branch,Redfern Travel Ltd,059832C,146.56,CONSOLIDATED TRAVEL REDFERN ENG JUNE WEEK 3,BD1 3AZ,Admin
Food Standards Agency,Food Standards Agency,04/07/2013,Travel UK ,Food Hygiene Policy Branch,Redfern Travel Ltd,58396,94.06,CONSOLIDATED MAY REDFERN TRAVEL INVOICE,BD1 3AZ,Admin
Food Standards Agency,Food Standards Agency,04/07/2013,International Travel,Food Hygiene Policy Branch,Redfern Travel Ltd,58396,222.3,CONSOLIDATED MAY REDFERN TRAVEL INVOICE,BD1 3AZ,Admin
Food Standards Agency,Food Standards Agency,04/07/2013,Subsistence UK,Food Hygiene Policy Branch,Redfern Travel Ltd,58396,1.9,CONSOLIDATED MAY REDFERN TRAVEL INVOICE,BD1 3AZ,Admin
Food Standards Agency,Food Standards Agency,04/07/2013,International Travel,Food Hygiene Policy Branch,Redfern Travel Ltd,059832B,"1,034.30",CONSOLIDATED TRAVEL REDFERN ENG JUNE WEEK 2,BD1 3AZ,Admin
Food Standards Agency,Food Standards Agency,04/07/2013,Subsistence UK,Food Hygiene Policy Branch,Redfern Travel Ltd,059832C,1.56,CONSOLIDATED TRAVEL REDFERN ENG JUNE WEEK 3,BD1 3AZ,Admin
Food Standards Agency,Food Standards Agency,04/07/2013,Travel UK ,Food Policy Private Office,Redfern Travel Ltd,58396,627.17,CONSOLIDATED MAY REDFERN TRAVEL INVOICE,BD1 3AZ,Admin
Food Standards Agency,Food Standards Agency,04/07/2013,International Travel,Food Policy Private Office,Redfern Travel Ltd,58396,652.2,CONSOLIDATED MAY REDFERN TRAVEL INVOICE,BD1 3AZ,Admin
Food Standards Agency,Food Standards Agency,04/07/2013,International Travel,Food Policy Private Office,Redfern Travel Ltd,58396,208.42,CONSOLIDATED MAY REDFERN TRAVEL INVOICE,BD1 3AZ,Admin
Food Standards Agency,Food Standards Agency,04/07/2013,Subsistence UK,Food Policy Private Office,Redfern Travel Ltd,58396,121.3,CONSOLIDATED MAY REDFERN TRAVEL INVOICE,BD1 3AZ,Admin
Food Standards Agency,Food Standards Agency,04/07/2013,Subsistence UK,Food Policy Private Office,Redfern Travel Ltd,58396,2.6,CONSOLIDATED MAY REDFERN TRAVEL INVOICE,BD1 3AZ,Admin
Food Standards Agency,Food Standards Agency,04/07/2013,Travel UK ,Food Policy Private Office,Redfern Travel Ltd,059832A,996.78,CONSOLIDATED TRAVEL REDFERN ENG JUNE WEEK 1,BD1 3AZ,Admin
Food Standards Agency,Food Standards Agency,04/07/2013,Subsistence UK,Food Policy Private Office,Redfern Travel Ltd,059832A,495.68,CONSOLIDATED TRAVEL REDFERN ENG JUNE WEEK 1,BD1 3AZ,Admin
Food Standards Agency,Food Standards Agency,04/07/2013,Travel UK ,Food Policy Private Office,Redfern Travel Ltd,059832B,61.07,CONSOLIDATED TRAVEL REDFERN ENG JUNE WEEK 2,BD1 3AZ,Admin
Food Standards Agency,Food Standards Agency,04/07/2013,International Travel,Food Policy Private Office,Redfern Travel Ltd,059832B,"1,484.30",CONSOLIDATED TRAVEL REDFERN ENG JUNE WEEK 2,BD1 3AZ,Admin
Food Standards Agency,Food Standards Agency,04/07/2013,Subsistence UK,Food Policy Private Office,Redfern Travel Ltd,059832B,187.56,CONSOLIDATED TRAVEL REDFERN ENG JUNE WEEK 2,BD1 3AZ,Admin
Food Standards Agency,Food Standards Agency,04/07/2013,Subsistence UK,Food Policy Private Office,Redfern Travel Ltd,059832B,1.56,CONSOLIDATED TRAVEL REDFERN ENG JUNE WEEK 2,BD1 3AZ,Admin
Food Standards Agency,Food Standards Agency,04/07/2013,Travel UK ,Food Policy Private Office,Redfern Travel Ltd,059832C,68.21,CONSOLIDATED TRAVEL REDFERN ENG JUNE WEEK 3,BD1 3AZ,Admin
Food Standards Agency,Food Standards Agency,04/07/2013,Subsistence UK,Food Policy Private Office,Redfern Travel Ltd,059832C,72.28,CONSOLIDATED TRAVEL REDFERN ENG JUNE WEEK 3,BD1 3AZ,Admin
Food Standards Agency,Food Standards Agency,04/07/2013,Subsistence UK,Food Policy Private Office,Redfern Travel Ltd,059832C,1.56,CONSOLIDATED TRAVEL REDFERN ENG JUNE WEEK 3,BD1 3AZ,Admin
Food Standards Agency,Food Standards Agency,04/07/2013,Travel UK ,Food Production Branch,Redfern Travel Ltd,58396,126.53,CONSOLIDATED MAY REDFERN TRAVEL INVOICE,BD1 3AZ,Admin
Food Standards Agency,Food Standards Agency,04/07/2013,Travel UK ,Food Production Branch,Redfern Travel Ltd,059832A,85.51,CONSOLIDATED TRAVEL REDFERN ENG JUNE WEEK 1,BD1 3AZ,Admin
Food Standards Agency,Food Standards Agency,04/07/2013,Subsistence UK,Food Production Branch,Redfern Travel Ltd,059832A,63.56,CONSOLIDATED TRAVEL REDFERN ENG JUNE WEEK 1,BD1 3AZ,Admin
Food Standards Agency,Food Standards Agency,04/07/2013,Travel UK ,Food Production Branch,Redfern Travel Ltd,059832B,55.25,CONSOLIDATED TRAVEL REDFERN ENG JUNE WEEK 2,BD1 3AZ,Admin
Food Standards Agency,Food Standards Agency,04/07/2013,International Travel,Food Production Branch,Redfern Travel Ltd,059832B,133.4,CONSOLIDATED TRAVEL REDFERN ENG JUNE WEEK 2,BD1 3AZ,Admin
Food Standards Agency,Food Standards Agency,04/07/2013,Subsistence UK,Food Production Branch,Redfern Travel Ltd,059832B,71.56,CONSOLIDATED TRAVEL REDFERN ENG JUNE WEEK 2,BD1 3AZ,Admin
Food Standards Agency,Food Standards Agency,04/07/2013,Travel UK ,Foodborne Diseases Branch,Redfern Travel Ltd,58396,129.22,CONSOLIDATED MAY REDFERN TRAVEL INVOICE,BD1 3AZ,Admin
Food Standards Agency,Food Standards Agency,04/07/2013,Travel UK ,Foodborne Diseases Branch,Redfern Travel Ltd,059832C,282.73,CONSOLIDATED TRAVEL REDFERN ENG JUNE WEEK 3,BD1 3AZ,Admin
Food Standards Agency,Food Standards Agency,04/07/2013,Travel UK ,FSA Board,Redfern Travel Ltd,58396,"1,727.87",CONSOLIDATED MAY REDFERN TRAVEL INVOICE,BD1 3AZ,Admin
Food Standards Agency,Food Standards Agency,04/07/2013,Subsistence UK,FSA Board,Redfern Travel Ltd,58396,1.3,CONSOLIDATED MAY REDFERN TRAVEL INVOICE,BD1 3AZ,Admin
Food Standards Agency,Food Standards Agency,04/07/2013,Travel UK ,FSA Board,Redfern Travel Ltd,059832A,309.31,CONSOLIDATED TRAVEL REDFERN ENG JUNE WEEK 1,BD1 3AZ,Admin
Food Standards Agency,Food Standards Agency,04/07/2013,Subsistence UK,FSA Board,Redfern Travel Ltd,059832A,126.55,CONSOLIDATED TRAVEL REDFERN ENG JUNE WEEK 1,BD1 3AZ,Admin
Food Standards Agency,Food Standards Agency,04/07/2013,Travel UK ,FSA Board,Redfern Travel Ltd,059832B,276.59,CONSOLIDATED TRAVEL REDFERN ENG JUNE WEEK 2,BD1 3AZ,Admin
Food Standards Agency,Food Standards Agency,04/07/2013,Subsistence UK,FSA Board,Redfern Travel Ltd,059832B,88.56,CONSOLIDATED TRAVEL REDFERN ENG JUNE WEEK 2,BD1 3AZ,Admin
Food Standards Agency,Food Standards Agency,04/07/2013,Travel UK ,FSA Board,Redfern Travel Ltd,059832C,358.92,CONSOLIDATED TRAVEL REDFERN ENG JUNE WEEK 3,BD1 3AZ,Admin
Food Standards Agency,Food Standards Agency,04/07/2013,Subsistence UK,FSA Board,Redfern Travel Ltd,059832C,153.55,CONSOLIDATED TRAVEL REDFERN ENG JUNE WEEK 3,BD1 3AZ,Admin
Food Standards Agency,Food Standards Agency,04/07/2013,Travel UK ,FSA Operations Director & Support,Redfern Travel Ltd,059832B,96.96,CONSOLIDATED TRAVEL REDFERN ENG JUNE WEEK 2,BD1 3AZ,Programme
Food Standards Agency,Food Standards Agency,04/07/2013,Subsistence UK,FSA Operations Director & Support,Redfern Travel Ltd,059832B,95.21,CONSOLIDATED TRAVEL REDFERN ENG JUNE WEEK 2,BD1 3AZ,Programme
Food Standards Agency,Food Standards Agency,04/07/2013,Travel UK ,HR,Redfern Travel Ltd,58396,"5,875.84",CONSOLIDATED MAY REDFERN TRAVEL INVOICE,BD1 3AZ,Admin
Food Standards Agency,Food Standards Agency,04/07/2013,Subsistence UK,HR,Redfern Travel Ltd,58396,496.25,CONSOLIDATED MAY REDFERN TRAVEL INVOICE,BD1 3AZ,Admin
Food Standards Agency,Food Standards Agency,04/07/2013,Travel UK ,HR,Redfern Travel Ltd,059832A,1515.03,CONSOLIDATED TRAVEL REDFERN ENG JUNE WEEK 1,BD1 3AZ,Admin
Food Standards Agency,Food Standards Agency,04/07/2013,Subsistence UK,HR,Redfern Travel Ltd,059832A,140.56,CONSOLIDATED TRAVEL REDFERN ENG JUNE WEEK 1,BD1 3AZ,Admin
Food Standards Agency,Food Standards Agency,04/07/2013,Travel UK ,HR,Redfern Travel Ltd,059832B,948.74,CONSOLIDATED TRAVEL REDFERN ENG JUNE WEEK 2,BD1 3AZ,Admin
Food Standards Agency,Food Standards Agency,04/07/2013,Subsistence UK,HR,Redfern Travel Ltd,059832B,114.37,CONSOLIDATED TRAVEL REDFERN ENG JUNE WEEK 2,BD1 3AZ,Admin
Food Standards Agency,Food Standards Agency,04/07/2013,Travel UK ,HR,Redfern Travel Ltd,059832C,"1,222.24",CONSOLIDATED TRAVEL REDFERN ENG JUNE WEEK 3,BD1 3AZ,Admin
Food Standards Agency,Food Standards Agency,04/07/2013,Subsistence UK,HR,Redfern Travel Ltd,059832C,73.32,CONSOLIDATED TRAVEL REDFERN ENG JUNE WEEK 3,BD1 3AZ,Admin
Food Standards Agency,Food Standards Agency,04/07/2013,Travel UK ,Hygiene & Microbiology Division HoD,Redfern Travel Ltd,58396,34.3,CONSOLIDATED MAY REDFERN TRAVEL INVOICE,BD1 3AZ,Admin
Food Standards Agency,Food Standards Agency,04/07/2013,Travel UK ,Hygiene & Microbiology Division HoD,Redfern Travel Ltd,059832B,150.88,CONSOLIDATED TRAVEL REDFERN ENG JUNE WEEK 2,BD1 3AZ,Admin
Food Standards Agency,Food Standards Agency,04/07/2013,Travel UK ,Incidents & Food Fraud,Redfern Travel Ltd,58396,203.01,CONSOLIDATED MAY REDFERN TRAVEL INVOICE,BD1 3AZ,Admin
Food Standards Agency,Food Standards Agency,04/07/2013,International Travel,Incidents & Food Fraud,Redfern Travel Ltd,58396,80.9,CONSOLIDATED MAY REDFERN TRAVEL INVOICE,BD1 3AZ,Admin
Food Standards Agency,Food Standards Agency,04/07/2013,Travel UK ,Incidents & Food Fraud,Redfern Travel Ltd,059832A,165.88,CONSOLIDATED TRAVEL REDFERN ENG JUNE WEEK 1,BD1 3AZ,Admin
Food Standards Agency,Food Standards Agency,04/07/2013,Subsistence UK,Incidents & Food Fraud,Redfern Travel Ltd,059832A,3.12,CONSOLIDATED TRAVEL REDFERN ENG JUNE WEEK 1,BD1 3AZ,Admin
Food Standards Agency,Food Standards Agency,04/07/2013,Travel UK ,Incidents & Food Fraud,Redfern Travel Ltd,059832B,50.36,CONSOLIDATED TRAVEL REDFERN ENG JUNE WEEK 2,BD1 3AZ,Admin
Food Standards Agency,Food Standards Agency,04/07/2013,Subsistence UK,Incidents & Food Fraud,Redfern Travel Ltd,059832B,66.46,CONSOLIDATED TRAVEL REDFERN ENG JUNE WEEK 2,BD1 3AZ,Admin
Food Standards Agency,Food Standards Agency,04/07/2013,Subsistence UK,Incidents & Food Fraud,Redfern Travel Ltd,059832B,1.56,CONSOLIDATED TRAVEL REDFERN ENG JUNE WEEK 2,BD1 3AZ,Admin
Food Standards Agency,Food Standards Agency,04/07/2013,Travel UK ,Incidents & Food Fraud,Redfern Travel Ltd,059832C,170.7,CONSOLIDATED TRAVEL REDFERN ENG JUNE WEEK 3,BD1 3AZ,Admin
Food Standards Agency,Food Standards Agency,04/07/2013,Subsistence UK,Incidents & Food Fraud,Redfern Travel Ltd,059832C,1.56,CONSOLIDATED TRAVEL REDFERN ENG JUNE WEEK 3,BD1 3AZ,Admin
Food Standards Agency,Food Standards Agency,04/07/2013,Travel UK ,Internal Audit,Redfern Travel Ltd,58396,816.08,CONSOLIDATED MAY REDFERN TRAVEL INVOICE,BD1 3AZ,Admin
Food Standards Agency,Food Standards Agency,04/07/2013,International Travel,Internal Audit,Redfern Travel Ltd,58396,11.1,CONSOLIDATED MAY REDFERN TRAVEL INVOICE,BD1 3AZ,Admin
Food Standards Agency,Food Standards Agency,04/07/2013,International Travel,Internal Audit,Redfern Travel Ltd,58396,43.64,CONSOLIDATED MAY REDFERN TRAVEL INVOICE,BD1 3AZ,Admin
Food Standards Agency,Food Standards Agency,04/07/2013,Subsistence UK,Internal Audit,Redfern Travel Ltd,58396,759.53,CONSOLIDATED MAY REDFERN TRAVEL INVOICE,BD1 3AZ,Admin
Food Standards Agency,Food Standards Agency,04/07/2013,Subsistence UK,Internal Audit,Redfern Travel Ltd,58396,1.3,CONSOLIDATED MAY REDFERN TRAVEL INVOICE,BD1 3AZ,Admin
Food Standards Agency,Food Standards Agency,04/07/2013,Travel UK ,Internal Audit,Redfern Travel Ltd,059832A,299.98,CONSOLIDATED TRAVEL REDFERN ENG JUNE WEEK 1,BD1 3AZ,Admin
Food Standards Agency,Food Standards Agency,04/07/2013,International Travel,Internal Audit,Redfern Travel Ltd,059832A,120.9,CONSOLIDATED TRAVEL REDFERN ENG JUNE WEEK 1,BD1 3AZ,Admin
Food Standards Agency,Food Standards Agency,04/07/2013,Subsistence UK,Internal Audit,Redfern Travel Ltd,059832A,228.88,CONSOLIDATED TRAVEL REDFERN ENG JUNE WEEK 1,BD1 3AZ,Admin
Food Standards Agency,Food Standards Agency,04/07/2013,Travel UK ,Internal Audit,Redfern Travel Ltd,059832B,402.81,CONSOLIDATED TRAVEL REDFERN ENG JUNE WEEK 2,BD1 3AZ,Admin
Food Standards Agency,Food Standards Agency,04/07/2013,Subsistence UK,Internal Audit,Redfern Travel Ltd,059832B,89.24,CONSOLIDATED TRAVEL REDFERN ENG JUNE WEEK 2,BD1 3AZ,Admin
Food Standards Agency,Food Standards Agency,04/07/2013,Subsistence UK,Internal Audit,Redfern Travel Ltd,059832B,1.56,CONSOLIDATED TRAVEL REDFERN ENG JUNE WEEK 2,BD1 3AZ,Admin
Food Standards Agency,Food Standards Agency,04/07/2013,Subsistence UK,Internal Audit,Redfern Travel Ltd,059832C,146.64,CONSOLIDATED TRAVEL REDFERN ENG JUNE WEEK 3,BD1 3AZ,Admin
Food Standards Agency,Food Standards Agency,04/07/2013,Travel UK ,Investigations,Redfern Travel Ltd,58396,983.36,CONSOLIDATED MAY REDFERN TRAVEL INVOICE,BD1 3AZ,Admin
Food Standards Agency,Food Standards Agency,04/07/2013,Subsistence UK,Investigations,Redfern Travel Ltd,58396,574.86,CONSOLIDATED MAY REDFERN TRAVEL INVOICE,BD1 3AZ,Admin
Food Standards Agency,Food Standards Agency,04/07/2013,Travel UK ,Investigations,Redfern Travel Ltd,059832A,471.59,CONSOLIDATED TRAVEL REDFERN ENG JUNE WEEK 1,BD1 3AZ,Admin
Food Standards Agency,Food Standards Agency,04/07/2013,Subsistence UK,Investigations,Redfern Travel Ltd,059832A,264.52,CONSOLIDATED TRAVEL REDFERN ENG JUNE WEEK 1,BD1 3AZ,Admin
Food Standards Agency,Food Standards Agency,04/07/2013,Travel UK ,Investigations,Redfern Travel Ltd,059832B,560.39,CONSOLIDATED TRAVEL REDFERN ENG JUNE WEEK 2,BD1 3AZ,Admin
Food Standards Agency,Food Standards Agency,04/07/2013,Subsistence UK,Investigations,Redfern Travel Ltd,059832B,277.73,CONSOLIDATED TRAVEL REDFERN ENG JUNE WEEK 2,BD1 3AZ,Admin
Food Standards Agency,Food Standards Agency,04/07/2013,Travel UK ,Investigations,Redfern Travel Ltd,059832C,-90.06,CONSOLIDATED TRAVEL REDFERN ENG JUNE WEEK 3,BD1 3AZ,Admin
Food Standards Agency,Food Standards Agency,04/07/2013,Subsistence UK,Investigations,Redfern Travel Ltd,059832C,945.78,CONSOLIDATED TRAVEL REDFERN ENG JUNE WEEK 3,BD1 3AZ,Admin
Food Standards Agency,Food Standards Agency,04/07/2013,Travel UK ,IT HoD,Redfern Travel Ltd,58396,"1,341.50",CONSOLIDATED MAY REDFERN TRAVEL INVOICE,BD1 3AZ,Admin
Food Standards Agency,Food Standards Agency,04/07/2013,Subsistence UK,IT HoD,Redfern Travel Ltd,58396,263.25,CONSOLIDATED MAY REDFERN TRAVEL INVOICE,BD1 3AZ,Admin
Food Standards Agency,Food Standards Agency,04/07/2013,Travel UK ,IT HoD,Redfern Travel Ltd,059832A,449.95,CONSOLIDATED TRAVEL REDFERN ENG JUNE WEEK 1,BD1 3AZ,Admin
Food Standards Agency,Food Standards Agency,04/07/2013,Subsistence UK,IT HoD,Redfern Travel Ltd,059832A,1.56,CONSOLIDATED TRAVEL REDFERN ENG JUNE WEEK 1,BD1 3AZ,Admin
Food Standards Agency,Food Standards Agency,04/07/2013,Travel UK ,IT HoD,Redfern Travel Ltd,059832B,36.2,CONSOLIDATED TRAVEL REDFERN ENG JUNE WEEK 2,BD1 3AZ,Admin
Food Standards Agency,Food Standards Agency,04/07/2013,Subsistence UK,IT HoD,Redfern Travel Ltd,059832B,79.81,CONSOLIDATED TRAVEL REDFERN ENG JUNE WEEK 2,BD1 3AZ,Admin
Food Standards Agency,Food Standards Agency,04/07/2013,Travel UK ,IT HoD,Redfern Travel Ltd,059832C,120.24,CONSOLIDATED TRAVEL REDFERN ENG JUNE WEEK 3,BD1 3AZ,Admin
Food Standards Agency,Food Standards Agency,04/07/2013,Travel UK ,IT Information & Knowledge Management,Redfern Travel Ltd,58396,193.97,CONSOLIDATED MAY REDFERN TRAVEL INVOICE,BD1 3AZ,Admin
Food Standards Agency,Food Standards Agency,04/07/2013,Travel UK ,IT Information & Knowledge Management,Redfern Travel Ltd,059832A,169.71,CONSOLIDATED TRAVEL REDFERN ENG JUNE WEEK 1,BD1 3AZ,Admin
Food Standards Agency,Food Standards Agency,04/07/2013,Travel UK ,IT Information & Knowledge Management,Redfern Travel Ltd,059832B,230.12,CONSOLIDATED TRAVEL REDFERN ENG JUNE WEEK 2,BD1 3AZ,Admin
Food Standards Agency,Food Standards Agency,04/07/2013,Travel UK ,IT Information & Knowledge Management,Redfern Travel Ltd,059832C,2.9,CONSOLIDATED TRAVEL REDFERN ENG JUNE WEEK 3,BD1 3AZ,Admin
Food Standards Agency,Food Standards Agency,04/07/2013,Subsistence UK,IT Information & Knowledge Management,Redfern Travel Ltd,059832C,1.56,CONSOLIDATED TRAVEL REDFERN ENG JUNE WEEK 3,BD1 3AZ,Admin
Food Standards Agency,Food Standards Agency,04/07/2013,Travel UK ,LAALD HoD & Support,Redfern Travel Ltd,58396,"5,106.31",CONSOLIDATED MAY REDFERN TRAVEL INVOICE,BD1 3AZ,Admin
Food Standards Agency,Food Standards Agency,04/07/2013,International Travel,LAALD HoD & Support,Redfern Travel Ltd,58396,25.09,CONSOLIDATED MAY REDFERN TRAVEL INVOICE,BD1 3AZ,Admin
Food Standards Agency,Food Standards Agency,04/07/2013,Subsistence UK,LAALD HoD & Support,Redfern Travel Ltd,58396,"1,693.98",CONSOLIDATED MAY REDFERN TRAVEL INVOICE,BD1 3AZ,Admin
Food Standards Agency,Food Standards Agency,04/07/2013,Travel UK ,LAALD HoD & Support,Redfern Travel Ltd,059832A,799.24,CONSOLIDATED TRAVEL REDFERN ENG JUNE WEEK 1,BD1 3AZ,Admin
Food Standards Agency,Food Standards Agency,04/07/2013,Subsistence UK,LAALD HoD & Support,Redfern Travel Ltd,059832A,1833.84,CONSOLIDATED TRAVEL REDFERN ENG JUNE WEEK 1,BD1 3AZ,Admin
Food Standards Agency,Food Standards Agency,04/07/2013,Travel UK ,LAALD HoD & Support,Redfern Travel Ltd,059832B,"2,795.66",CONSOLIDATED TRAVEL REDFERN ENG JUNE WEEK 2,BD1 3AZ,Admin
Food Standards Agency,Food Standards Agency,04/07/2013,Subsistence UK,LAALD HoD & Support,Redfern Travel Ltd,059832B,103.56,CONSOLIDATED TRAVEL REDFERN ENG JUNE WEEK 2,BD1 3AZ,Admin
Food Standards Agency,Food Standards Agency,04/07/2013,Travel UK ,LAALD HoD & Support,Redfern Travel Ltd,059832C,405.68,CONSOLIDATED TRAVEL REDFERN ENG JUNE WEEK 3,BD1 3AZ,Admin
Food Standards Agency,Food Standards Agency,04/07/2013,Subsistence UK,LAALD HoD & Support,Redfern Travel Ltd,059832C,796.39,CONSOLIDATED TRAVEL REDFERN ENG JUNE WEEK 3,BD1 3AZ,Admin
Food Standards Agency,Food Standards Agency,04/07/2013,Travel UK ,Legal Branch A,Redfern Travel Ltd,58396,544.74,CONSOLIDATED MAY REDFERN TRAVEL INVOICE,BD1 3AZ,Admin
Food Standards Agency,Food Standards Agency,04/07/2013,International Travel,Legal Branch A,Redfern Travel Ltd,58396,12.57,CONSOLIDATED MAY REDFERN TRAVEL INVOICE,BD1 3AZ,Admin
Food Standards Agency,Food Standards Agency,04/07/2013,Subsistence UK,Legal Branch A,Redfern Travel Ltd,58396,73.06,CONSOLIDATED MAY REDFERN TRAVEL INVOICE,BD1 3AZ,Admin
Food Standards Agency,Food Standards Agency,04/07/2013,Travel UK ,Legal Branch A,Redfern Travel Ltd,059832A,132.87,CONSOLIDATED TRAVEL REDFERN ENG JUNE WEEK 1,BD1 3AZ,Admin
Food Standards Agency,Food Standards Agency,04/07/2013,Travel UK ,Meat & Hygiene & TSE Policy Branch,Redfern Travel Ltd,58396,77.07,CONSOLIDATED MAY REDFERN TRAVEL INVOICE,BD1 3AZ,Admin
Food Standards Agency,Food Standards Agency,04/07/2013,Travel UK ,Meat & Hygiene & TSE Policy Branch,Redfern Travel Ltd,059832C,95.99,CONSOLIDATED TRAVEL REDFERN ENG JUNE WEEK 3,BD1 3AZ,Admin
Food Standards Agency,Food Standards Agency,04/07/2013,Travel UK ,Microbiological Food Safety Branch,Redfern Travel Ltd,58396,45.74,CONSOLIDATED MAY REDFERN TRAVEL INVOICE,BD1 3AZ,Admin
Food Standards Agency,Food Standards Agency,04/07/2013,Travel UK ,Microbiological Food Safety Branch,Redfern Travel Ltd,059832B,57.14,CONSOLIDATED TRAVEL REDFERN ENG JUNE WEEK 2,BD1 3AZ,Admin
Food Standards Agency,Food Standards Agency,04/07/2013,Travel UK ,Novel Food Unit,Redfern Travel Ltd,58396,100.5,CONSOLIDATED MAY REDFERN TRAVEL INVOICE,BD1 3AZ,Admin
Food Standards Agency,Food Standards Agency,04/07/2013,International Travel,Novel Food Unit,Redfern Travel Ltd,58396,225.9,CONSOLIDATED MAY REDFERN TRAVEL INVOICE,BD1 3AZ,Admin
Food Standards Agency,Food Standards Agency,04/07/2013,Subsistence UK,Novel Food Unit,Redfern Travel Ltd,58396,1.3,CONSOLIDATED MAY REDFERN TRAVEL INVOICE,BD1 3AZ,Admin
Food Standards Agency,Food Standards Agency,04/07/2013,International Travel,Novel Food Unit,Redfern Travel Ltd,059832A,175.9,CONSOLIDATED TRAVEL REDFERN ENG JUNE WEEK 1,BD1 3AZ,Admin
Food Standards Agency,Food Standards Agency,04/07/2013,Subsistence UK,Novel Food Unit,Redfern Travel Ltd,059832B,1.56,CONSOLIDATED TRAVEL REDFERN ENG JUNE WEEK 2,BD1 3AZ,Admin
Food Standards Agency,Food Standards Agency,04/07/2013,Travel UK ,Official Controls & Enforcement Strategy,Redfern Travel Ltd,58396,304.94,CONSOLIDATED MAY REDFERN TRAVEL INVOICE,BD1 3AZ,Admin
Food Standards Agency,Food Standards Agency,04/07/2013,International Travel,Official Controls & Enforcement Strategy,Redfern Travel Ltd,58396,281.4,CONSOLIDATED MAY REDFERN TRAVEL INVOICE,BD1 3AZ,Admin
Food Standards Agency,Food Standards Agency,04/07/2013,Subsistence UK,Official Controls & Enforcement Strategy,Redfern Travel Ltd,58396,141.3,CONSOLIDATED MAY REDFERN TRAVEL INVOICE,BD1 3AZ,Admin
Food Standards Agency,Food Standards Agency,04/07/2013,International Subsistence,Official Controls & Enforcement Strategy,Redfern Travel Ltd,58396,1.3,CONSOLIDATED MAY REDFERN TRAVEL INVOICE,BD1 3AZ,Admin
Food Standards Agency,Food Standards Agency,04/07/2013,Subsistence UK,Official Controls & Enforcement Strategy,Redfern Travel Ltd,059832A,1.56,CONSOLIDATED TRAVEL REDFERN ENG JUNE WEEK 1,BD1 3AZ,Admin
Food Standards Agency,Food Standards Agency,04/07/2013,Travel UK ,Official Controls & Enforcement Strategy,Redfern Travel Ltd,059832B,173.54,CONSOLIDATED TRAVEL REDFERN ENG JUNE WEEK 2,BD1 3AZ,Admin
Food Standards Agency,Food Standards Agency,04/07/2013,Travel UK ,Official Controls & Enforcement Strategy,Redfern Travel Ltd,059832C,244.8,CONSOLIDATED TRAVEL REDFERN ENG JUNE WEEK 3,BD1 3AZ,Admin
Food Standards Agency,Food Standards Agency,04/07/2013,Subsistence UK,Official Controls & Enforcement Strategy,Redfern Travel Ltd,059832C,75.4,CONSOLIDATED TRAVEL REDFERN ENG JUNE WEEK 3,BD1 3AZ,Admin
Food Standards Agency,Food Standards Agency,04/07/2013,Travel UK ,Operational Delivery,Redfern Travel Ltd,58396,"8,085.28",CONSOLIDATED MAY REDFERN TRAVEL INVOICE,BD1 3AZ,Programme
Food Standards Agency,Food Standards Agency,04/07/2013,Subsistence UK,Operational Delivery,Redfern Travel Ltd,58396,"2,614.06",CONSOLIDATED MAY REDFERN TRAVEL INVOICE,BD1 3AZ,Programme
Food Standards Agency,Food Standards Agency,04/07/2013,Travel UK ,Operational Delivery,Redfern Travel Ltd,059832A,1441.94,CONSOLIDATED TRAVEL REDFERN ENG JUNE WEEK 1,BD1 3AZ,Programme
Food Standards Agency,Food Standards Agency,04/07/2013,Subsistence UK,Operational Delivery,Redfern Travel Ltd,059832A,780.64,CONSOLIDATED TRAVEL REDFERN ENG JUNE WEEK 1,BD1 3AZ,Programme
Food Standards Agency,Food Standards Agency,04/07/2013,Travel UK ,Operational Delivery,Redfern Travel Ltd,059832B,"1,422.35",CONSOLIDATED TRAVEL REDFERN ENG JUNE WEEK 2,BD1 3AZ,Programme
Food Standards Agency,Food Standards Agency,04/07/2013,Subsistence UK,Operational Delivery,Redfern Travel Ltd,059832B,721.75,CONSOLIDATED TRAVEL REDFERN ENG JUNE WEEK 2,BD1 3AZ,Programme
Food Standards Agency,Food Standards Agency,04/07/2013,Travel UK ,Operational Delivery,Redfern Travel Ltd,059832C,"1,964.10",CONSOLIDATED TRAVEL REDFERN ENG JUNE WEEK 3,BD1 3AZ,Programme
Food Standards Agency,Food Standards Agency,04/07/2013,Subsistence UK,Operational Delivery,Redfern Travel Ltd,059832C,675.51,CONSOLIDATED TRAVEL REDFERN ENG JUNE WEEK 3,BD1 3AZ,Programme
Food Standards Agency,Food Standards Agency,04/07/2013,Travel UK ,Planning and Performance,Redfern Travel Ltd,58396,"2,992.27",CONSOLIDATED MAY REDFERN TRAVEL INVOICE,BD1 3AZ,Admin
Food Standards Agency,Food Standards Agency,04/07/2013,Subsistence UK,Planning and Performance,Redfern Travel Ltd,58396,"1,088.37",CONSOLIDATED MAY REDFERN TRAVEL INVOICE,BD1 3AZ,Admin
Food Standards Agency,Food Standards Agency,04/07/2013,Travel UK ,Planning and Performance,Redfern Travel Ltd,059832A,999.85,CONSOLIDATED TRAVEL REDFERN ENG JUNE WEEK 1,BD1 3AZ,Admin
Food Standards Agency,Food Standards Agency,04/07/2013,Subsistence UK,Planning and Performance,Redfern Travel Ltd,059832A,588.78,CONSOLIDATED TRAVEL REDFERN ENG JUNE WEEK 1,BD1 3AZ,Admin
Food Standards Agency,Food Standards Agency,04/07/2013,Travel UK ,Planning and Performance,Redfern Travel Ltd,059832B,696.16,CONSOLIDATED TRAVEL REDFERN ENG JUNE WEEK 2,BD1 3AZ,Admin
Food Standards Agency,Food Standards Agency,04/07/2013,Subsistence UK,Planning and Performance,Redfern Travel Ltd,059832B,97.36,CONSOLIDATED TRAVEL REDFERN ENG JUNE WEEK 2,BD1 3AZ,Admin
Food Standards Agency,Food Standards Agency,04/07/2013,Travel UK ,Planning and Performance,Redfern Travel Ltd,059832C,937.54,CONSOLIDATED TRAVEL REDFERN ENG JUNE WEEK 3,BD1 3AZ,Admin
Food Standards Agency,Food Standards Agency,04/07/2013,Subsistence UK,Planning and Performance,Redfern Travel Ltd,059832C,503.08,CONSOLIDATED TRAVEL REDFERN ENG JUNE WEEK 3,BD1 3AZ,Admin
Food Standards Agency,Food Standards Agency,04/07/2013,Travel UK ,Procurement,Redfern Travel Ltd,58396,"2,002.34",CONSOLIDATED MAY REDFERN TRAVEL INVOICE,BD1 3AZ,Admin
Food Standards Agency,Food Standards Agency,04/07/2013,Subsistence UK,Procurement,Redfern Travel Ltd,58396,221.9,CONSOLIDATED MAY REDFERN TRAVEL INVOICE,BD1 3AZ,Admin
Food Standards Agency,Food Standards Agency,04/07/2013,Travel UK ,Procurement,Redfern Travel Ltd,059832A,388.3,CONSOLIDATED TRAVEL REDFERN ENG JUNE WEEK 1,BD1 3AZ,Admin
Food Standards Agency,Food Standards Agency,04/07/2013,Subsistence UK,Procurement,Redfern Travel Ltd,059832A,182.07,CONSOLIDATED TRAVEL REDFERN ENG JUNE WEEK 1,BD1 3AZ,Admin
Food Standards Agency,Food Standards Agency,04/07/2013,Travel UK ,Procurement,Redfern Travel Ltd,059832B,374.82,CONSOLIDATED TRAVEL REDFERN ENG JUNE WEEK 2,BD1 3AZ,Admin
Food Standards Agency,Food Standards Agency,04/07/2013,Subsistence UK,Procurement,Redfern Travel Ltd,059832B,277.56,CONSOLIDATED TRAVEL REDFERN ENG JUNE WEEK 2,BD1 3AZ,Admin
Food Standards Agency,Food Standards Agency,04/07/2013,Subsistence UK,Procurement,Redfern Travel Ltd,059832B,181.28,CONSOLIDATED TRAVEL REDFERN ENG JUNE WEEK 2,BD1 3AZ,Admin
Food Standards Agency,Food Standards Agency,04/07/2013,Travel UK ,Procurement,Redfern Travel Ltd,059832C,398.6,CONSOLIDATED TRAVEL REDFERN ENG JUNE WEEK 3,BD1 3AZ,Admin
Food Standards Agency,Food Standards Agency,04/07/2013,Subsistence UK,Procurement,Redfern Travel Ltd,059832C,161.27,CONSOLIDATED TRAVEL REDFERN ENG JUNE WEEK 3,BD1 3AZ,Admin
Food Standards Agency,Food Standards Agency,04/07/2013,Travel UK ,Radiation & Residues,Redfern Travel Ltd,58396,135.69,CONSOLIDATED MAY REDFERN TRAVEL INVOICE,BD1 3AZ,Admin
Food Standards Agency,Food Standards Agency,04/07/2013,International Travel,Radiation & Residues,Redfern Travel Ltd,58396,341.4,CONSOLIDATED MAY REDFERN TRAVEL INVOICE,BD1 3AZ,Admin
Food Standards Agency,Food Standards Agency,04/07/2013,Travel UK ,Radiation & Residues,Redfern Travel Ltd,059832B,68.6,CONSOLIDATED TRAVEL REDFERN ENG JUNE WEEK 2,BD1 3AZ,Admin
Food Standards Agency,Food Standards Agency,04/07/2013,International Travel,Radiation & Residues,Redfern Travel Ltd,059832B,20.88,CONSOLIDATED TRAVEL REDFERN ENG JUNE WEEK 2,BD1 3AZ,Admin
Food Standards Agency,Food Standards Agency,04/07/2013,Travel UK ,Radiation & Residues,Redfern Travel Ltd,059832C,19.26,CONSOLIDATED TRAVEL REDFERN ENG JUNE WEEK 3,BD1 3AZ,Admin
Food Standards Agency,Food Standards Agency,04/07/2013,Travel UK ,Security & Estates,Redfern Travel Ltd,58396,293.26,CONSOLIDATED MAY REDFERN TRAVEL INVOICE,BD1 3AZ,Admin
Food Standards Agency,Food Standards Agency,04/07/2013,Subsistence UK,Security & Estates,Redfern Travel Ltd,58396,141.29,CONSOLIDATED MAY REDFERN TRAVEL INVOICE,BD1 3AZ,Admin
Food Standards Agency,Food Standards Agency,04/07/2013,Travel UK ,Security & Estates,Redfern Travel Ltd,059832A,78.53,CONSOLIDATED TRAVEL REDFERN ENG JUNE WEEK 1,BD1 3AZ,Admin
Food Standards Agency,Food Standards Agency,04/07/2013,Subsistence UK,Security & Estates,Redfern Travel Ltd,059832A,146.56,CONSOLIDATED TRAVEL REDFERN ENG JUNE WEEK 1,BD1 3AZ,Admin
Food Standards Agency,Food Standards Agency,04/07/2013,Subsistence UK,Security & Estates,Redfern Travel Ltd,059832B,171.56,CONSOLIDATED TRAVEL REDFERN ENG JUNE WEEK 2,BD1 3AZ,Admin
Food Standards Agency,Food Standards Agency,04/07/2013,Subsistence UK,Security & Estates,Redfern Travel Ltd,059832C,153.55,CONSOLIDATED TRAVEL REDFERN ENG JUNE WEEK 3,BD1 3AZ,Admin
Food Standards Agency,Food Standards Agency,04/07/2013,Travel UK ,Standards Branch,Redfern Travel Ltd,58396,568.5,CONSOLIDATED MAY REDFERN TRAVEL INVOICE,BD1 3AZ,Admin
Food Standards Agency,Food Standards Agency,04/07/2013,Travel UK ,Standards Branch,Redfern Travel Ltd,059832A,427.58,CONSOLIDATED TRAVEL REDFERN ENG JUNE WEEK 1,BD1 3AZ,Admin
Food Standards Agency,Food Standards Agency,04/07/2013,International Travel,Standards Branch,Redfern Travel Ltd,059832A,11.69,CONSOLIDATED TRAVEL REDFERN ENG JUNE WEEK 1,BD1 3AZ,Admin
Food Standards Agency,Food Standards Agency,04/07/2013,Travel UK ,Standards Branch,Redfern Travel Ltd,059832B,90.28,CONSOLIDATED TRAVEL REDFERN ENG JUNE WEEK 2,BD1 3AZ,Admin
Food Standards Agency,Food Standards Agency,04/07/2013,Travel UK ,Standards Branch,Redfern Travel Ltd,059832C,48.61,CONSOLIDATED TRAVEL REDFERN ENG JUNE WEEK 3,BD1 3AZ,Admin
Food Standards Agency,Food Standards Agency,04/07/2013,Project Programme expenditure,Standards Branch,Redfern Travel Ltd,58396,429.15,CONSOLIDATED MAY REDFERN TRAVEL INVOICE,BD1 3AZ,Admin
Food Standards Agency,Food Standards Agency,04/07/2013,Travel UK ,Wine Standards,Redfern Travel Ltd,58396,790.96,CONSOLIDATED MAY REDFERN TRAVEL INVOICE,BD1 3AZ,Programme
Food Standards Agency,Food Standards Agency,04/07/2013,International Travel,Wine Standards,Redfern Travel Ltd,58396,83.46,CONSOLIDATED MAY REDFERN TRAVEL INVOICE,BD1 3AZ,Programme
Food Standards Agency,Food Standards Agency,04/07/2013,Subsistence UK,Wine Standards,Redfern Travel Ltd,58396,78.3,CONSOLIDATED MAY REDFERN TRAVEL INVOICE,BD1 3AZ,Programme
Food Standards Agency,Food Standards Agency,04/07/2013,Travel UK ,Wine Standards,Redfern Travel Ltd,059832A,75.31,CONSOLIDATED TRAVEL REDFERN ENG JUNE WEEK 1,BD1 3AZ,Programme
Food Standards Agency,Food Standards Agency,04/07/2013,Subsistence UK,Wine Standards,Redfern Travel Ltd,059832A,72.12,CONSOLIDATED TRAVEL REDFERN ENG JUNE WEEK 1,BD1 3AZ,Programme
Food Standards Agency,Food Standards Agency,04/07/2013,Travel UK ,Wine Standards,Redfern Travel Ltd,059832B,138.32,CONSOLIDATED TRAVEL REDFERN ENG JUNE WEEK 2,BD1 3AZ,Programme
Food Standards Agency,Food Standards Agency,04/07/2013,Subsistence UK,Wine Standards,Redfern Travel Ltd,059832B,368.93,CONSOLIDATED TRAVEL REDFERN ENG JUNE WEEK 2,BD1 3AZ,Programme
Food Standards Agency,Food Standards Agency,04/07/2013,Travel UK ,Wine Standards,Redfern Travel Ltd,059832C,297.74,CONSOLIDATED TRAVEL REDFERN ENG JUNE WEEK 3,BD1 3AZ,Programme
Food Standards Agency,Food Standards Agency,04/07/2013,Subsistence UK,Wine Standards,Redfern Travel Ltd,059832C,188.06,CONSOLIDATED TRAVEL REDFERN ENG JUNE WEEK 3,BD1 3AZ,Programme
Food Standards Agency,Food Standards Agency,09/07/2013,International Travel,Additives,Redfern Travel Ltd,059832D,180.9,CONSOLIDATED TRAVEL REDFERN ENG JUNE WEEK 4,BD1 3AZ,Admin
Food Standards Agency,Food Standards Agency,09/07/2013,Subsistence UK,Agricultural Process & Environmental Contaminants & Strategy,Redfern Travel Ltd,059832D,71.56,CONSOLIDATED TRAVEL REDFERN ENG JUNE WEEK 4,BD1 3AZ,Admin
Food Standards Agency,Food Standards Agency,09/07/2013,Project Programme expenditure,Analysis & Research Branch,Public Health England,6013630,"50,597.94",PO 405911 PROVISION UK REF LAB SERVICES FOOD MICROBIOLOGY APR - JUN 13,SP4 0JG,Programme
Food Standards Agency,Food Standards Agency,09/07/2013,Travel UK ,Animal Feed     ,Redfern Travel Ltd,059832D,959.57,CONSOLIDATED TRAVEL REDFERN ENG JUNE WEEK 4,BD1 3AZ,Admin
Food Standards Agency,Food Standards Agency,09/07/2013,Subsistence UK,Animal Feed     ,Redfern Travel Ltd,059832D,763.56,CONSOLIDATED TRAVEL REDFERN ENG JUNE WEEK 4,BD1 3AZ,Admin
Food Standards Agency,Food Standards Agency,09/07/2013,Subsistence UK,Animal Feed Branch,Redfern Travel Ltd,059832D,96.56,CONSOLIDATED TRAVEL REDFERN ENG JUNE WEEK 4,BD1 3AZ,Admin
Food Standards Agency,Food Standards Agency,09/07/2013,Travel UK ,Approvals & Veterinary Advice,Redfern Travel Ltd,059832D,"1,107.07",CONSOLIDATED TRAVEL REDFERN ENG JUNE WEEK 4,BD1 3AZ,Programme
Food Standards Agency,Food Standards Agency,09/07/2013,Subsistence UK,Approvals & Veterinary Advice,Redfern Travel Ltd,059832D,"1,062.09",CONSOLIDATED TRAVEL REDFERN ENG JUNE WEEK 4,BD1 3AZ,Programme
Food Standards Agency,Food Standards Agency,09/07/2013,Travel UK ,Area 1 Scotland - Cluster 14,Redfern Travel Ltd,059832D,197.34,CONSOLIDATED TRAVEL REDFERN ENG JUNE WEEK 4,BD1 3AZ,Programme
Food Standards Agency,Food Standards Agency,09/07/2013,Subsistence UK,Area 1 Scotland - Cluster 14,Redfern Travel Ltd,059832D,83.56,CONSOLIDATED TRAVEL REDFERN ENG JUNE WEEK 4,BD1 3AZ,Programme
Food Standards Agency,Food Standards Agency,09/07/2013,Travel UK ,Area 2 Wales - Cluster 21,Redfern Travel Ltd,059832D,112.03,CONSOLIDATED TRAVEL REDFERN ENG JUNE WEEK 4,BD1 3AZ,Programme
Food Standards Agency,Food Standards Agency,09/07/2013,Subsistence UK,Area 2 Wales - Cluster 21,Redfern Travel Ltd,059832D,415.08,CONSOLIDATED TRAVEL REDFERN ENG JUNE WEEK 4,BD1 3AZ,Programme
Food Standards Agency,Food Standards Agency,09/07/2013,Subsistence UK,Area 3 North West England - Cluster 31,Redfern Travel Ltd,059832D,143.88,CONSOLIDATED TRAVEL REDFERN ENG JUNE WEEK 4,BD1 3AZ,Programme
Food Standards Agency,Food Standards Agency,09/07/2013,Subsistence UK,Area 3 North West England - Cluster 32,Redfern Travel Ltd,059832D,83.56,CONSOLIDATED TRAVEL REDFERN ENG JUNE WEEK 4,BD1 3AZ,Programme
Food Standards Agency,Food Standards Agency,09/07/2013,Subsistence UK,Area 3 North West England - Cluster 33,Redfern Travel Ltd,059832D,101.12,CONSOLIDATED TRAVEL REDFERN ENG JUNE WEEK 4,BD1 3AZ,Programme
Food Standards Agency,Food Standards Agency,09/07/2013,Subsistence UK,Area 3 North West England - Cluster 34,Redfern Travel Ltd,059832D,304.38,CONSOLIDATED TRAVEL REDFERN ENG JUNE WEEK 4,BD1 3AZ,Programme
Food Standards Agency,Food Standards Agency,09/07/2013,Subsistence UK,Area 3 North West England - Cluster 35,Redfern Travel Ltd,059832D,187.12,CONSOLIDATED TRAVEL REDFERN ENG JUNE WEEK 4,BD1 3AZ,Programme
Food Standards Agency,Food Standards Agency,09/07/2013,Subsistence UK,Area 4 North East England - Cluster 41,Redfern Travel Ltd,059832D,165.56,CONSOLIDATED TRAVEL REDFERN ENG JUNE WEEK 4,BD1 3AZ,Programme
Food Standards Agency,Food Standards Agency,09/07/2013,Subsistence UK,Area 4 North East England - Cluster 43,Redfern Travel Ltd,059832D,15.56,CONSOLIDATED TRAVEL REDFERN ENG JUNE WEEK 4,BD1 3AZ,Programme
Food Standards Agency,Food Standards Agency,09/07/2013,Travel UK ,Area 4 North East England - Cluster 44,Redfern Travel Ltd,059832D,130.55,CONSOLIDATED TRAVEL REDFERN ENG JUNE WEEK 4,BD1 3AZ,Programme
Food Standards Agency,Food Standards Agency,09/07/2013,Subsistence UK,Area 4 North East England - Cluster 44,Redfern Travel Ltd,059832D,129.56,CONSOLIDATED TRAVEL REDFERN ENG JUNE WEEK 4,BD1 3AZ,Programme
Food Standards Agency,Food Standards Agency,09/07/2013,Subsistence UK,Area 4 North East England - Cluster 46,Redfern Travel Ltd,059832D,245.68,CONSOLIDATED TRAVEL REDFERN ENG JUNE WEEK 4,BD1 3AZ,Programme
Food Standards Agency,Food Standards Agency,09/07/2013,Subsistence UK,Area 4 North East England - Cluster 47,Redfern Travel Ltd,059832D,143.88,CONSOLIDATED TRAVEL REDFERN ENG JUNE WEEK 4,BD1 3AZ,Programme
Food Standards Agency,Food Standards Agency,09/07/2013,Travel UK ,Area 4 North East England - Cluster 48,Redfern Travel Ltd,059832D,62.94,CONSOLIDATED TRAVEL REDFERN ENG JUNE WEEK 4,BD1 3AZ,Programme
Food Standards Agency,Food Standards Agency,09/07/2013,Subsistence UK,Area 4 North East England - Cluster 48,Redfern Travel Ltd,059832D,162.37,CONSOLIDATED TRAVEL REDFERN ENG JUNE WEEK 4,BD1 3AZ,Programme
Food Standards Agency,Food Standards Agency,09/07/2013,Travel UK ,Area 5 South West England - Cluster 51,Redfern Travel Ltd,059832D,102.28,CONSOLIDATED TRAVEL REDFERN ENG JUNE WEEK 4,BD1 3AZ,Programme
Food Standards Agency,Food Standards Agency,09/07/2013,Subsistence UK,Area 5 South West England - Cluster 52,Redfern Travel Ltd,059832D,306.4,CONSOLIDATED TRAVEL REDFERN ENG JUNE WEEK 4,BD1 3AZ,Programme
Food Standards Agency,Food Standards Agency,09/07/2013,Subsistence UK,Area 5 South West England - Cluster 53,Redfern Travel Ltd,059832D,285.37,CONSOLIDATED TRAVEL REDFERN ENG JUNE WEEK 4,BD1 3AZ,Programme
Food Standards Agency,Food Standards Agency,09/07/2013,Travel UK ,Area 5 South West England - Cluster 54,Redfern Travel Ltd,059832D,352.59,CONSOLIDATED TRAVEL REDFERN ENG JUNE WEEK 4,BD1 3AZ,Programme
Food Standards Agency,Food Standards Agency,09/07/2013,Subsistence UK,Area 5 South West England - Cluster 55,Redfern Travel Ltd,059832D,69.56,CONSOLIDATED TRAVEL REDFERN ENG JUNE WEEK 4,BD1 3AZ,Programme
Food Standards Agency,Food Standards Agency,09/07/2013,Subsistence UK,Area 5 South West England - Cluster 56,Redfern Travel Ltd,059832D,141.12,CONSOLIDATED TRAVEL REDFERN ENG JUNE WEEK 4,BD1 3AZ,Programme
Food Standards Agency,Food Standards Agency,09/07/2013,Subsistence UK,Area 5 South West England - Cluster 57,Redfern Travel Ltd,059832D,131.56,CONSOLIDATED TRAVEL REDFERN ENG JUNE WEEK 4,BD1 3AZ,Programme
Food Standards Agency,Food Standards Agency,09/07/2013,Travel UK ,Area 6 South East England - Cluster 61,Redfern Travel Ltd,059832D,86.08,CONSOLIDATED TRAVEL REDFERN ENG JUNE WEEK 4,BD1 3AZ,Programme
Food Standards Agency,Food Standards Agency,09/07/2013,Travel UK ,Area 6 South East England - Cluster 63,Redfern Travel Ltd,059832D,214.67,CONSOLIDATED TRAVEL REDFERN ENG JUNE WEEK 4,BD1 3AZ,Programme
Food Standards Agency,Food Standards Agency,09/07/2013,Subsistence UK,Area 6 South East England - Cluster 63,Redfern Travel Ltd,059832D,4.65,CONSOLIDATED TRAVEL REDFERN ENG JUNE WEEK 4,BD1 3AZ,Programme
Food Standards Agency,Food Standards Agency,09/07/2013,Travel UK ,Area 6 South East England - Cluster 65,Redfern Travel Ltd,059832D,19.02,CONSOLIDATED TRAVEL REDFERN ENG JUNE WEEK 4,BD1 3AZ,Programme
Food Standards Agency,Food Standards Agency,09/07/2013,International Travel,Area 6 South East England - Cluster 65,Redfern Travel Ltd,059832D,115.72,CONSOLIDATED TRAVEL REDFERN ENG JUNE WEEK 4,BD1 3AZ,Programme
Food Standards Agency,Food Standards Agency,09/07/2013,Subsistence UK,Area 6 South East England - Cluster 65,Redfern Travel Ltd,059832D,-66,CONSOLIDATED TRAVEL REDFERN ENG JUNE WEEK 4,BD1 3AZ,Programme
Food Standards Agency,Food Standards Agency,09/07/2013,Travel UK ,Area 6 South East England - Cluster 66,Redfern Travel Ltd,059832D,113.43,CONSOLIDATED TRAVEL REDFERN ENG JUNE WEEK 4,BD1 3AZ,Programme
Food Standards Agency,Food Standards Agency,09/07/2013,Travel UK ,Central Operations Hub,Redfern Travel Ltd,059832D,892.87,CONSOLIDATED TRAVEL REDFERN ENG JUNE WEEK 4,BD1 3AZ,Programme
Food Standards Agency,Food Standards Agency,09/07/2013,Subsistence UK,Central Operations Hub,Redfern Travel Ltd,059832D,919.91,CONSOLIDATED TRAVEL REDFERN ENG JUNE WEEK 4,BD1 3AZ,Programme
Food Standards Agency,Food Standards Agency,09/07/2013,Travel UK ,Chemical Risk Assessment Unit,Redfern Travel Ltd,059832D,194.48,CONSOLIDATED TRAVEL REDFERN ENG JUNE WEEK 4,BD1 3AZ,Admin
Food Standards Agency,Food Standards Agency,09/07/2013,Travel UK ,Chief Executive & Private Office,Redfern Travel Ltd,059832D,140.83,CONSOLIDATED TRAVEL REDFERN ENG JUNE WEEK 4,BD1 3AZ,Admin
Food Standards Agency,Food Standards Agency,09/07/2013,Subsistence UK,Chief Executive & Private Office,Redfern Travel Ltd,059832D,242.11,CONSOLIDATED TRAVEL REDFERN ENG JUNE WEEK 4,BD1 3AZ,Admin
Food Standards Agency,Food Standards Agency,09/07/2013,Travel UK ,Chief Scientist,Redfern Travel Ltd,059832D,58.16,CONSOLIDATED TRAVEL REDFERN ENG JUNE WEEK 4,BD1 3AZ,Admin
Food Standards Agency,Food Standards Agency,09/07/2013,Travel UK ,Comms Directors Office,Redfern Travel Ltd,059832D,752.13,CONSOLIDATED TRAVEL REDFERN ENG JUNE WEEK 4,BD1 3AZ,Admin
Food Standards Agency,Food Standards Agency,09/07/2013,Subsistence UK,Comms Directors Office,Redfern Travel Ltd,059832D,436.56,CONSOLIDATED TRAVEL REDFERN ENG JUNE WEEK 4,BD1 3AZ,Admin
Food Standards Agency,Food Standards Agency,09/07/2013,Travel UK ,Delivery,Redfern Travel Ltd,059832D,342.79,CONSOLIDATED TRAVEL REDFERN ENG JUNE WEEK 4,BD1 3AZ,Admin
Food Standards Agency,Food Standards Agency,09/07/2013,Subsistence UK,Delivery,Redfern Travel Ltd,059832D,379.67,CONSOLIDATED TRAVEL REDFERN ENG JUNE WEEK 4,BD1 3AZ,Admin
Food Standards Agency,Food Standards Agency,09/07/2013,Travel UK ,Enforcement Policy,Redfern Travel Ltd,059832D,212.53,CONSOLIDATED TRAVEL REDFERN ENG JUNE WEEK 4,BD1 3AZ,Admin
Food Standards Agency,Food Standards Agency,09/07/2013,Travel UK ,EU Regulatory Reform Branch,Redfern Travel Ltd,059832D,113.93,CONSOLIDATED TRAVEL REDFERN ENG JUNE WEEK 4,BD1 3AZ,Admin
Food Standards Agency,Food Standards Agency,09/07/2013,Subsistence UK,European & International Strategy,Redfern Travel Ltd,059832D,95.21,CONSOLIDATED TRAVEL REDFERN ENG JUNE WEEK 4,BD1 3AZ,Admin
Food Standards Agency,Food Standards Agency,09/07/2013,Travel UK ,Finance Group Director & Branch,Redfern Travel Ltd,059832D,588.14,CONSOLIDATED TRAVEL REDFERN ENG JUNE WEEK 4,BD1 3AZ,Admin
Food Standards Agency,Food Standards Agency,09/07/2013,Travel UK ,Food Policy Private Office,Redfern Travel Ltd,059832D,320.56,CONSOLIDATED TRAVEL REDFERN ENG JUNE WEEK 4,BD1 3AZ,Admin
Food Standards Agency,Food Standards Agency,09/07/2013,Travel UK ,Food Policy Strategy HoD,Redfern Travel Ltd,059832D,203.37,CONSOLIDATED TRAVEL REDFERN ENG JUNE WEEK 4,BD1 3AZ,Admin
Food Standards Agency,Food Standards Agency,09/07/2013,Subsistence UK,Food Production Branch,Redfern Travel Ltd,059832D,446.67,CONSOLIDATED TRAVEL REDFERN ENG JUNE WEEK 4,BD1 3AZ,Admin
Food Standards Agency,Food Standards Agency,09/07/2013,Travel UK ,Foodborne Diseases Branch,Redfern Travel Ltd,059832D,65.92,CONSOLIDATED TRAVEL REDFERN ENG JUNE WEEK 4,BD1 3AZ,Admin
Food Standards Agency,Food Standards Agency,09/07/2013,Travel UK ,FSA Board,Redfern Travel Ltd,059832D,218.2,CONSOLIDATED TRAVEL REDFERN ENG JUNE WEEK 4,BD1 3AZ,Admin
Food Standards Agency,Food Standards Agency,09/07/2013,Travel UK ,HR,Redfern Travel Ltd,059832D,"1,279.83",CONSOLIDATED TRAVEL REDFERN ENG JUNE WEEK 4,BD1 3AZ,Admin
Food Standards Agency,Food Standards Agency,09/07/2013,Subsistence UK,HR,Redfern Travel Ltd,059832D,156.12,CONSOLIDATED TRAVEL REDFERN ENG JUNE WEEK 4,BD1 3AZ,Admin
Food Standards Agency,Food Standards Agency,09/07/2013,Travel UK ,Hygiene & Microbiology Division HoD,Redfern Travel Ltd,059832D,95.52,CONSOLIDATED TRAVEL REDFERN ENG JUNE WEEK 4,BD1 3AZ,Admin
Food Standards Agency,Food Standards Agency,09/07/2013,International Travel,Hygiene & Microbiology Division HoD,Redfern Travel Ltd,059832D,145.16,CONSOLIDATED TRAVEL REDFERN ENG JUNE WEEK 4,BD1 3AZ,Admin
Food Standards Agency,Food Standards Agency,09/07/2013,Subsistence UK,Hygiene & Microbiology Division HoD,Redfern Travel Ltd,059832D,79.56,CONSOLIDATED TRAVEL REDFERN ENG JUNE WEEK 4,BD1 3AZ,Admin
Food Standards Agency,Food Standards Agency,09/07/2013,Travel UK ,Incidents & Food Fraud,Redfern Travel Ltd,059832D,92.1,CONSOLIDATED TRAVEL REDFERN ENG JUNE WEEK 4,BD1 3AZ,Admin
Food Standards Agency,Food Standards Agency,09/07/2013,Travel UK ,Internal Audit,Redfern Travel Ltd,059832D,274.17,CONSOLIDATED TRAVEL REDFERN ENG JUNE WEEK 4,BD1 3AZ,Admin
Food Standards Agency,Food Standards Agency,09/07/2013,Subsistence UK,Internal Audit,Redfern Travel Ltd,059832D,73.32,CONSOLIDATED TRAVEL REDFERN ENG JUNE WEEK 4,BD1 3AZ,Admin
Food Standards Agency,Food Standards Agency,09/07/2013,Travel UK ,Investigations,Redfern Travel Ltd,059832D,279.78,CONSOLIDATED TRAVEL REDFERN ENG JUNE WEEK 4,BD1 3AZ,Admin
Food Standards Agency,Food Standards Agency,09/07/2013,Subsistence UK,Investigations,Redfern Travel Ltd,059832D,735.1,CONSOLIDATED TRAVEL REDFERN ENG JUNE WEEK 4,BD1 3AZ,Admin
Food Standards Agency,Food Standards Agency,09/07/2013,Travel UK ,IT Information & Knowledge Management,Redfern Travel Ltd,059832D,95.99,CONSOLIDATED TRAVEL REDFERN ENG JUNE WEEK 4,BD1 3AZ,Admin
Food Standards Agency,Food Standards Agency,09/07/2013,Subsistence UK,IT Information & Knowledge Management,Redfern Travel Ltd,059832D,10.8,CONSOLIDATED TRAVEL REDFERN ENG JUNE WEEK 4,BD1 3AZ,Admin
Food Standards Agency,Food Standards Agency,09/07/2013,Travel UK ,LAALD HoD & Support,Redfern Travel Ltd,059832D,947.23,CONSOLIDATED TRAVEL REDFERN ENG JUNE WEEK 4,BD1 3AZ,Admin
Food Standards Agency,Food Standards Agency,09/07/2013,Subsistence UK,LAALD HoD & Support,Redfern Travel Ltd,059832D,"1,457.30",CONSOLIDATED TRAVEL REDFERN ENG JUNE WEEK 4,BD1 3AZ,Admin
Food Standards Agency,Food Standards Agency,09/07/2013,International Travel,Meat & Hygiene & TSE Policy Branch,Redfern Travel Ltd,059832D,305.86,CONSOLIDATED TRAVEL REDFERN ENG JUNE WEEK 4,BD1 3AZ,Admin
Food Standards Agency,Food Standards Agency,09/07/2013,Subsistence UK,Meat & Hygiene & TSE Policy Branch,Redfern Travel Ltd,059832D,1.56,CONSOLIDATED TRAVEL REDFERN ENG JUNE WEEK 4,BD1 3AZ,Admin
Food Standards Agency,Food Standards Agency,09/07/2013,Subsistence UK,Novel Food Unit,Redfern Travel Ltd,059832D,469.4,CONSOLIDATED TRAVEL REDFERN ENG JUNE WEEK 4,BD1 3AZ,Admin
Food Standards Agency,Food Standards Agency,09/07/2013,Travel UK ,Official Controls & Enforcement Strategy,Redfern Travel Ltd,059832D,58.8,CONSOLIDATED TRAVEL REDFERN ENG JUNE WEEK 4,BD1 3AZ,Admin
Food Standards Agency,Food Standards Agency,09/07/2013,Subsistence UK,Official Controls & Enforcement Strategy,Redfern Travel Ltd,059832D,272.72,CONSOLIDATED TRAVEL REDFERN ENG JUNE WEEK 4,BD1 3AZ,Admin
Food Standards Agency,Food Standards Agency,09/07/2013,Travel UK ,Operational Delivery,Redfern Travel Ltd,059832D,"2,069.35",CONSOLIDATED TRAVEL REDFERN ENG JUNE WEEK 4,BD1 3AZ,Programme
Food Standards Agency,Food Standards Agency,09/07/2013,Subsistence UK,Operational Delivery,Redfern Travel Ltd,059832D,796.9,CONSOLIDATED TRAVEL REDFERN ENG JUNE WEEK 4,BD1 3AZ,Programme
Food Standards Agency,Food Standards Agency,09/07/2013,Travel UK ,Planning and Performance,Redfern Travel Ltd,059832D,"1,220.83",CONSOLIDATED TRAVEL REDFERN ENG JUNE WEEK 4,BD1 3AZ,Admin
Food Standards Agency,Food Standards Agency,09/07/2013,Subsistence UK,Planning and Performance,Redfern Travel Ltd,059832D,234.77,CONSOLIDATED TRAVEL REDFERN ENG JUNE WEEK 4,BD1 3AZ,Admin
Food Standards Agency,Food Standards Agency,09/07/2013,Travel UK ,Procurement,Redfern Travel Ltd,059832D,"1,470.40",CONSOLIDATED TRAVEL REDFERN ENG JUNE WEEK 4,BD1 3AZ,Admin
Food Standards Agency,Food Standards Agency,09/07/2013,Subsistence UK,Procurement,Redfern Travel Ltd,059832D,1.56,CONSOLIDATED TRAVEL REDFERN ENG JUNE WEEK 4,BD1 3AZ,Admin
Food Standards Agency,Food Standards Agency,09/07/2013,Subsistence UK,Procurement,Redfern Travel Ltd,059832D,176.34,CONSOLIDATED TRAVEL REDFERN ENG JUNE WEEK 4,BD1 3AZ,Admin
Food Standards Agency,Food Standards Agency,09/07/2013,Travel UK ,Radiation & Residues,Redfern Travel Ltd,059832D,19.26,CONSOLIDATED TRAVEL REDFERN ENG JUNE WEEK 4,BD1 3AZ,Admin
Food Standards Agency,Food Standards Agency,09/07/2013,International Travel,Radiation & Residues,Redfern Travel Ltd,059832D,165.92,CONSOLIDATED TRAVEL REDFERN ENG JUNE WEEK 4,BD1 3AZ,Admin
Food Standards Agency,Food Standards Agency,09/07/2013,Travel UK ,Security & Estates,Redfern Travel Ltd,059832D,227.15,CONSOLIDATED TRAVEL REDFERN ENG JUNE WEEK 4,BD1 3AZ,Admin
Food Standards Agency,Food Standards Agency,09/07/2013,Subsistence UK,Security & Estates,Redfern Travel Ltd,059832D,1.56,CONSOLIDATED TRAVEL REDFERN ENG JUNE WEEK 4,BD1 3AZ,Admin
Food Standards Agency,Food Standards Agency,09/07/2013,Travel UK ,Standards Branch,Redfern Travel Ltd,059832D,86.77,CONSOLIDATED TRAVEL REDFERN ENG JUNE WEEK 4,BD1 3AZ,Admin
Food Standards Agency,Food Standards Agency,09/07/2013,Travel UK ,Wine Standards,Redfern Travel Ltd,059832D,66.19,CONSOLIDATED TRAVEL REDFERN ENG JUNE WEEK 4,BD1 3AZ,Programme
Food Standards Agency,Food Standards Agency,09/07/2013,Subsistence UK,Wine Standards,Redfern Travel Ltd,059832D,335.2,CONSOLIDATED TRAVEL REDFERN ENG JUNE WEEK 4,BD1 3AZ,Programme
Food Standards Agency,Food Standards Agency,11/07/2013,Special payments & compensation,Operational Delivery,Clarke Willmott,CO87912012,"30,000.00",CLAIMANT COSTS RE JASPERS LTD,TA1 2PG,Programme
Food Standards Agency,Food Standards Agency,11/07/2013,Utilities,Security & Estates,E D F Energy,EDF0157,"31,218.87",EDF INVOICE 157 - JUNE 2013,EX1 3UT,Admin
Food Standards Agency,Food Standards Agency,11/07/2013,Utilities,Security & Estates,E D F Energy,EDF0157,"6,243.77",EDF INVOICE 157 - JUNE 2013,EX1 3UT,Admin
Food Standards Agency,Food Standards Agency,11/07/2013,Service charges,Security & Estates,G4s Integrated Services (Uk) Ltd,M12888,"27,813.58",G4S MONTHLY CONTRACT CHARGES - JUNE 13,S81 7QF,Admin
Food Standards Agency,Food Standards Agency,11/07/2013,Service charges,Security & Estates,G4s Integrated Services (Uk) Ltd,M12888,"16,129.33",G4S MONTHLY CONTRACT CHARGES - JUNE 13,S81 7QF,Admin
Food Standards Agency,Food Standards Agency,11/07/2013,Service charges,Security & Estates,G4s Integrated Services (Uk) Ltd,M12888,"2,939.91",G4S MONTHLY CONTRACT CHARGES - JUNE 13,S81 7QF,Admin
Food Standards Agency,Food Standards Agency,11/07/2013,Office machinery: hire,Security & Estates,G4s Integrated Services (Uk) Ltd,M12888,"3,244.00",G4S MONTHLY CONTRACT CHARGES - JUNE 13,S81 7QF,Admin
Food Standards Agency,Food Standards Agency,15/07/2013,Programme Evidence & Research Expenditure,Analysis & Research Branch,University Of Hertfordshire,55560,"51,704.80",PO 405913 DOMESTIC KITCHEN PRACTICES FINAL INSTALMENT,AL10 9AB,Programme
Food Standards Agency,Food Standards Agency,15/07/2013,Laundry,Operational Delivery,Apparelmaster UK Ltd,48976,"26,257.86",PO 413162-LAUNDRY SERVICE PERIOD: 26/05/13-29/06/13,PR2 9ZD,Programme
Food Standards Agency,Food Standards Agency,17/07/2013,Agency temps - clerical,Operational Delivery,Ceredigion County Council,83300000806,"24,683.96",PO 414010 HORSEMEAT INVESTIGATION,SY23 3UE,Programme
Food Standards Agency,Food Standards Agency,17/07/2013,Carriage of samples,Operational Delivery,Ceredigion County Council,83300000806,600,PO 414010 HORSEMEAT INVESTIGATION,SY23 3UE,Programme
Food Standards Agency,Food Standards Agency,17/07/2013,Meat inspection equipment/consumables,Operational Delivery,Ceredigion County Council,83300000806,146.96,PO 414010 HORSEMEAT INVESTIGATION,SY23 3UE,Programme
Food Standards Agency,Food Standards Agency,17/07/2013,Sample collection equipment/consumables,Operational Delivery,Ceredigion County Council,83300000806,"12,035.00",PO 414010 HORSEMEAT INVESTIGATION,SY23 3UE,Programme
Food Standards Agency,Food Standards Agency,17/07/2013,Analysis of samples (non Trichinella),Operational Delivery,Ceredigion County Council,83300000806,"16,788.00",PO 414010 HORSEMEAT INVESTIGATION,SY23 3UE,Programme
Food Standards Agency,Food Standards Agency,23/07/2013,Project Programme expenditure,Agricultural Process & Environmental Contaminants & Strategy,C E F A S,8002607,"82,000.00",PO 414123 JAN & FEB,NR33 0HT,Programme
Food Standards Agency,Food Standards Agency,23/07/2013,Project Programme expenditure,Agricultural Process & Environmental Contaminants & Strategy,C E F A S,8002607,"82,000.00",PO 414123 JAN & FEB,NR33 0HT,Programme
Food Standards Agency,Food Standards Agency,23/07/2013,Project Programme expenditure,Agricultural Process & Environmental Contaminants & Strategy,C E F A S,8002845,"82,000.00",PO 414123 C5880 INV FOR APR 2013,NR33 0HT,Programme
Food Standards Agency,Food Standards Agency,23/07/2013,Analysis of samples (non Trichinella),Approvals & Veterinary Advice,Animal Health and Veterinary Laboratories Agency,5000029818,"28,876.93",PO 413934 AHVLA WORCESTER - PBZ TESTING,KT15 3NB,Programme
Food Standards Agency,Food Standards Agency,23/07/2013,Analysis of samples (non Trichinella),Approvals & Veterinary Advice,Animal Health and Veterinary Laboratories Agency,5000029818,"5,775.39",PO 413934 AHVLA WORCESTER - PBZ TESTING,KT15 3NB,Programme
Food Standards Agency,Food Standards Agency,23/07/2013,Programme Evidence & Research Expenditure,Chemical Risk Assessment Unit,Public Health England,6015145,"500,000.00",PO 413720 CONTRIBUTION TO NATIONAL DIET & NUTRITIONAL SURVEY,SP4 0JG,Programme
Food Standards Agency,Food Standards Agency,23/07/2013,Project Programme expenditure,Delivery,C E F A S,8002981,"26,584.00",PO 413441 C3019 QTR 1,NR33 0HT,Programme
Food Standards Agency,Food Standards Agency,23/07/2013,Project Programme expenditure,Radiation & Residues,C E F A S,8002804,"82,000.00",PO 414123 MAR,NR33 0HT,Programme
Food Standards Agency,Food Standards Agency,23/07/2013,Fixed Assets Additions,Security & Estates,Skansen Interiors Limited,2087,"190,365.52",PO 414121 AVIATION HOUSE LONDON VALUATION CERT,EC4N 1TX,Capital
Food Standards Agency,Food Standards Agency,23/07/2013,Fixed Assets Additions,Security & Estates,Skansen Interiors Limited,2087,"38,073.10",PO 414121 AVIATION HOUSE LONDON VALUATION CERT,EC4N 1TX,Capital
Food Standards Agency,Food Standards Agency,25/07/2013,Travel UK ,Agricultural Process & Environmental Contaminants & Strategy,Redfern Travel Ltd,61924,57.67,ACCOM & OTHER CHARGES,BD1 3AZ,Admin
Food Standards Agency,Food Standards Agency,25/07/2013,Subsistence UK,Analysis & Research Branch,Redfern Travel Ltd,61924,-62,ACCOM & OTHER CHARGES,BD1 3AZ,Admin
Food Standards Agency,Food Standards Agency,25/07/2013,Travel UK ,Animal Feed     ,Redfern Travel Ltd,61924,"1,004.08",ACCOM & OTHER CHARGES,BD1 3AZ,Admin
Food Standards Agency,Food Standards Agency,25/07/2013,Subsistence UK,Animal Feed     ,Redfern Travel Ltd,61924,333.12,ACCOM & OTHER CHARGES,BD1 3AZ,Admin
Food Standards Agency,Food Standards Agency,25/07/2013,Travel UK ,Animal Feed Branch,Redfern Travel Ltd,61924,282.1,ACCOM & OTHER CHARGES,BD1 3AZ,Admin
Food Standards Agency,Food Standards Agency,25/07/2013,International Travel,Animal Feed Branch,Redfern Travel Ltd,61924,139.9,ACCOM & OTHER CHARGES,BD1 3AZ,Admin
Food Standards Agency,Food Standards Agency,25/07/2013,Car hire expenses (short term),Animal Feed Branch,Redfern Travel Ltd,61924,2.4,ACCOM & OTHER CHARGES,BD1 3AZ,Admin
Food Standards Agency,Food Standards Agency,25/07/2013,Travel UK ,Approvals & Veterinary Advice,Redfern Travel Ltd,61924,408.21,ACCOM & OTHER CHARGES,BD1 3AZ,Programme
Food Standards Agency,Food Standards Agency,25/07/2013,Subsistence UK,Approvals & Veterinary Advice,Redfern Travel Ltd,61924,452.18,ACCOM & OTHER CHARGES,BD1 3AZ,Programme
Food Standards Agency,Food Standards Agency,25/07/2013,Travel UK ,Area 1 Scotland - Cluster 14,Redfern Travel Ltd,61924,69.25,ACCOM & OTHER CHARGES,BD1 3AZ,Programme
Food Standards Agency,Food Standards Agency,25/07/2013,Subsistence UK,Area 1 Scotland - Cluster 14,Redfern Travel Ltd,61924,148.12,ACCOM & OTHER CHARGES,BD1 3AZ,Programme
Food Standards Agency,Food Standards Agency,25/07/2013,Travel UK ,Area 1 Scotland - Cluster 15,Redfern Travel Ltd,61924,62.71,ACCOM & OTHER CHARGES,BD1 3AZ,Programme
Food Standards Agency,Food Standards Agency,25/07/2013,Subsistence UK,Area 2 Wales - Cluster 21,Redfern Travel Ltd,61924,273.96,ACCOM & OTHER CHARGES,BD1 3AZ,Programme
Food Standards Agency,Food Standards Agency,25/07/2013,Travel UK ,Area 3 North West England - Cluster 31,Redfern Travel Ltd,61924,164.79,ACCOM & OTHER CHARGES,BD1 3AZ,Programme
Food Standards Agency,Food Standards Agency,25/07/2013,Travel UK ,Area 3 North West England - Cluster 32,Redfern Travel Ltd,61924,64.93,ACCOM & OTHER CHARGES,BD1 3AZ,Programme
Food Standards Agency,Food Standards Agency,25/07/2013,Subsistence UK,Area 3 North West England - Cluster 33,Redfern Travel Ltd,61924,69.56,ACCOM & OTHER CHARGES,BD1 3AZ,Programme
Food Standards Agency,Food Standards Agency,25/07/2013,Travel UK ,Area 3 North West England - Cluster 34,Redfern Travel Ltd,61924,52.91,ACCOM & OTHER CHARGES,BD1 3AZ,Programme
Food Standards Agency,Food Standards Agency,25/07/2013,Subsistence UK,Area 3 North West England - Cluster 35,Redfern Travel Ltd,61924,79.56,ACCOM & OTHER CHARGES,BD1 3AZ,Programme
Food Standards Agency,Food Standards Agency,25/07/2013,Travel UK ,Area 4 North East England - Cluster 44,Redfern Travel Ltd,61924,104.69,ACCOM & OTHER CHARGES,BD1 3AZ,Programme
Food Standards Agency,Food Standards Agency,25/07/2013,Subsistence UK,Area 4 North East England - Cluster 44,Redfern Travel Ltd,61924,70.56,ACCOM & OTHER CHARGES,BD1 3AZ,Programme
Food Standards Agency,Food Standards Agency,25/07/2013,Travel UK ,Area 4 North East England - Cluster 46,Redfern Travel Ltd,61924,-60.32,ACCOM & OTHER CHARGES,BD1 3AZ,Programme
Food Standards Agency,Food Standards Agency,25/07/2013,Subsistence UK,Area 4 North East England - Cluster 46,Redfern Travel Ltd,61924,125.14,ACCOM & OTHER CHARGES,BD1 3AZ,Programme
Food Standards Agency,Food Standards Agency,25/07/2013,Subsistence UK,Area 5 South West England - Cluster 51,Redfern Travel Ltd,61924,"1,456.51",ACCOM & OTHER CHARGES,BD1 3AZ,Programme
Food Standards Agency,Food Standards Agency,25/07/2013,Subsistence UK,Area 5 South West England - Cluster 52,Redfern Travel Ltd,61924,408.96,ACCOM & OTHER CHARGES,BD1 3AZ,Programme
Food Standards Agency,Food Standards Agency,25/07/2013,Travel UK ,Area 5 South West England - Cluster 53,Redfern Travel Ltd,61924,35.16,ACCOM & OTHER CHARGES,BD1 3AZ,Programme
Food Standards Agency,Food Standards Agency,25/07/2013,Subsistence UK,Area 5 South West England - Cluster 53,Redfern Travel Ltd,61924,256.56,ACCOM & OTHER CHARGES,BD1 3AZ,Programme
Food Standards Agency,Food Standards Agency,25/07/2013,Subsistence UK,Area 5 South West England - Cluster 54,Redfern Travel Ltd,61924,177.56,ACCOM & OTHER CHARGES,BD1 3AZ,Programme
Food Standards Agency,Food Standards Agency,25/07/2013,Travel UK ,Area 5 South West England - Cluster 56,Redfern Travel Ltd,61924,171.93,ACCOM & OTHER CHARGES,BD1 3AZ,Programme
Food Standards Agency,Food Standards Agency,25/07/2013,Subsistence UK,Area 5 South West England - Cluster 56,Redfern Travel Ltd,61924,38.56,ACCOM & OTHER CHARGES,BD1 3AZ,Programme
Food Standards Agency,Food Standards Agency,25/07/2013,Travel UK ,Area 5 South West England - Cluster 57,Redfern Travel Ltd,61924,45.34,ACCOM & OTHER CHARGES,BD1 3AZ,Programme
Food Standards Agency,Food Standards Agency,25/07/2013,Subsistence UK,Area 5 South West England - Cluster 57,Redfern Travel Ltd,61924,133.56,ACCOM & OTHER CHARGES,BD1 3AZ,Programme
Food Standards Agency,Food Standards Agency,25/07/2013,Subsistence UK,Area 6 South East England - Cluster 61,Redfern Travel Ltd,61924,213.09,ACCOM & OTHER CHARGES,BD1 3AZ,Programme
Food Standards Agency,Food Standards Agency,25/07/2013,Travel UK ,Area 6 South East England - Cluster 62,Redfern Travel Ltd,61924,-130.31,ACCOM & OTHER CHARGES,BD1 3AZ,Programme
Food Standards Agency,Food Standards Agency,25/07/2013,Travel UK ,Area 6 South East England - Cluster 63,Redfern Travel Ltd,61924,210.01,ACCOM & OTHER CHARGES,BD1 3AZ,Programme
Food Standards Agency,Food Standards Agency,25/07/2013,Subsistence UK,Area 6 South East England - Cluster 63,Redfern Travel Ltd,61924,108.99,ACCOM & OTHER CHARGES,BD1 3AZ,Programme
Food Standards Agency,Food Standards Agency,25/07/2013,Subsistence UK,Area 6 South East England - Cluster 64,Redfern Travel Ltd,61924,290.12,ACCOM & OTHER CHARGES,BD1 3AZ,Programme
Food Standards Agency,Food Standards Agency,25/07/2013,Travel UK ,Area 6 South East England - Cluster 66,Redfern Travel Ltd,61924,38.07,ACCOM & OTHER CHARGES,BD1 3AZ,Programme
Food Standards Agency,Food Standards Agency,25/07/2013,Travel UK ,Central Operations Hub,Redfern Travel Ltd,61924,"2,052.48",ACCOM & OTHER CHARGES,BD1 3AZ,Programme
Food Standards Agency,Food Standards Agency,25/07/2013,Subsistence UK,Central Operations Hub,Redfern Travel Ltd,61924,"2,700.46",ACCOM & OTHER CHARGES,BD1 3AZ,Programme
Food Standards Agency,Food Standards Agency,25/07/2013,Travel UK ,Chair & Deputy Chair,Redfern Travel Ltd,61924,473.28,ACCOM & OTHER CHARGES,BD1 3AZ,Admin
Food Standards Agency,Food Standards Agency,25/07/2013,Subsistence UK,Chair & Deputy Chair,Redfern Travel Ltd,61924,84.31,ACCOM & OTHER CHARGES,BD1 3AZ,Admin
Food Standards Agency,Food Standards Agency,25/07/2013,Subsistence UK,Chemical Risk Assessment Unit,Redfern Travel Ltd,61924,73.32,ACCOM & OTHER CHARGES,BD1 3AZ,Admin
Food Standards Agency,Food Standards Agency,25/07/2013,Travel UK ,Chief Executive & Private Office,Redfern Travel Ltd,61924,259.7,ACCOM & OTHER CHARGES,BD1 3AZ,Admin
Food Standards Agency,Food Standards Agency,25/07/2013,Subsistence UK,Chief Executive & Private Office,Redfern Travel Ltd,61924,227.3,ACCOM & OTHER CHARGES,BD1 3AZ,Admin
Food Standards Agency,Food Standards Agency,25/07/2013,Travel UK ,Chief Scientist,Redfern Travel Ltd,61924,41.67,ACCOM & OTHER CHARGES,BD1 3AZ,Admin
Food Standards Agency,Food Standards Agency,25/07/2013,International Travel,Chief Scientist,Redfern Travel Ltd,61924,"3,263.35",ACCOM & OTHER CHARGES,BD1 3AZ,Admin
Food Standards Agency,Food Standards Agency,25/07/2013,Travel UK ,Comms Directors Office,Redfern Travel Ltd,61924,355.07,ACCOM & OTHER CHARGES,BD1 3AZ,Admin
Food Standards Agency,Food Standards Agency,25/07/2013,Subsistence UK,Comms Directors Office,Redfern Travel Ltd,61924,445.11,ACCOM & OTHER CHARGES,BD1 3AZ,Admin
Food Standards Agency,Food Standards Agency,25/07/2013,Travel UK ,Delivery,Redfern Travel Ltd,61924,108.91,ACCOM & OTHER CHARGES,BD1 3AZ,Admin
Food Standards Agency,Food Standards Agency,25/07/2013,Subsistence UK,Delivery,Redfern Travel Ltd,61924,234.68,ACCOM & OTHER CHARGES,BD1 3AZ,Admin
Food Standards Agency,Food Standards Agency,25/07/2013,Subsistence UK,EU Regulatory Reform Branch,Redfern Travel Ltd,61924,1.56,ACCOM & OTHER CHARGES,BD1 3AZ,Admin
Food Standards Agency,Food Standards Agency,25/07/2013,Travel UK ,Finance Group Director & Branch,Redfern Travel Ltd,61924,"1,038.67",ACCOM & OTHER CHARGES,BD1 3AZ,Admin
Food Standards Agency,Food Standards Agency,25/07/2013,Subsistence UK,Finance Group Director & Branch,Redfern Travel Ltd,61924,188.86,ACCOM & OTHER CHARGES,BD1 3AZ,Admin
Food Standards Agency,Food Standards Agency,25/07/2013,Travel UK ,Food Hygiene Policy Branch,Redfern Travel Ltd,61924,86.77,ACCOM & OTHER CHARGES,BD1 3AZ,Admin
Food Standards Agency,Food Standards Agency,25/07/2013,Travel UK ,Food Policy Private Office,Redfern Travel Ltd,61924,759.24,ACCOM & OTHER CHARGES,BD1 3AZ,Admin
Food Standards Agency,Food Standards Agency,25/07/2013,Subsistence UK,Food Policy Private Office,Redfern Travel Ltd,61924,1.56,ACCOM & OTHER CHARGES,BD1 3AZ,Admin
Food Standards Agency,Food Standards Agency,25/07/2013,Subsistence UK,Food Policy Private Office,Redfern Travel Ltd,61924,0.78,ACCOM & OTHER CHARGES,BD1 3AZ,Admin
Food Standards Agency,Food Standards Agency,25/07/2013,Travel UK ,Food Production Branch,Redfern Travel Ltd,61924,189.2,ACCOM & OTHER CHARGES,BD1 3AZ,Admin
Food Standards Agency,Food Standards Agency,25/07/2013,Subsistence UK,Food Production Branch,Redfern Travel Ltd,61924,1.56,ACCOM & OTHER CHARGES,BD1 3AZ,Admin
Food Standards Agency,Food Standards Agency,25/07/2013,Travel UK ,FSA Board,Redfern Travel Ltd,61924,308.82,ACCOM & OTHER CHARGES,BD1 3AZ,Admin
Food Standards Agency,Food Standards Agency,25/07/2013,Subsistence UK,FSA Board,Redfern Travel Ltd,61924,175.12,ACCOM & OTHER CHARGES,BD1 3AZ,Admin
Food Standards Agency,Food Standards Agency,25/07/2013,Travel UK ,HR,Redfern Travel Ltd,61924,"1,567.04",ACCOM & OTHER CHARGES,BD1 3AZ,Admin
Food Standards Agency,Food Standards Agency,25/07/2013,Travel UK ,Hygiene & Microbiology Division HoD,Redfern Travel Ltd,61924,128.83,ACCOM & OTHER CHARGES,BD1 3AZ,Admin
Food Standards Agency,Food Standards Agency,25/07/2013,Subsistence UK,Incidents & Food Fraud,Redfern Travel Ltd,61924,200.37,ACCOM & OTHER CHARGES,BD1 3AZ,Admin
Food Standards Agency,Food Standards Agency,25/07/2013,Subsistence UK,Internal Audit,Redfern Travel Ltd,61924,739.79,ACCOM & OTHER CHARGES,BD1 3AZ,Admin
Food Standards Agency,Food Standards Agency,25/07/2013,Subsistence UK,Investigations,Redfern Travel Ltd,61924,169.56,ACCOM & OTHER CHARGES,BD1 3AZ,Admin
Food Standards Agency,Food Standards Agency,25/07/2013,Travel UK ,IT HoD,Redfern Travel Ltd,61924,501.24,ACCOM & OTHER CHARGES,BD1 3AZ,Admin
Food Standards Agency,Food Standards Agency,25/07/2013,Subsistence UK,IT Information & Knowledge Management,Redfern Travel Ltd,61924,238.68,ACCOM & OTHER CHARGES,BD1 3AZ,Admin
Food Standards Agency,Food Standards Agency,25/07/2013,ASD support services,IT Service Delivery,Capita Secure Information Solutions Ltd,93086963,"245,256.35","PO 414122  CAPITA - JUNE 2013  CORE SERVICES CHARGE
",SN14 0TW,Admin
Food Standards Agency,Food Standards Agency,25/07/2013,Travel UK ,LAALD HoD & Support,Redfern Travel Ltd,61924,"1,217.56",ACCOM & OTHER CHARGES,BD1 3AZ,Admin
Food Standards Agency,Food Standards Agency,25/07/2013,Subsistence UK,LAALD HoD & Support,Redfern Travel Ltd,61924,467.89,ACCOM & OTHER CHARGES,BD1 3AZ,Admin
Food Standards Agency,Food Standards Agency,25/07/2013,International Travel,Legal Branch A,Redfern Travel Ltd,61924,145.9,ACCOM & OTHER CHARGES,BD1 3AZ,Admin
Food Standards Agency,Food Standards Agency,25/07/2013,Car hire expenses (short term),Meat & Hygiene & TSE Policy Branch,Redfern Travel Ltd,61924,1.26,ACCOM & OTHER CHARGES,BD1 3AZ,Admin
Food Standards Agency,Food Standards Agency,25/07/2013,Travel UK ,Official Controls & Enforcement Strategy,Redfern Travel Ltd,61924,350.97,ACCOM & OTHER CHARGES,BD1 3AZ,Admin
Food Standards Agency,Food Standards Agency,25/07/2013,Travel UK ,Operational Delivery,Redfern Travel Ltd,61924,"1,711.32",ACCOM & OTHER CHARGES,BD1 3AZ,Programme
Food Standards Agency,Food Standards Agency,25/07/2013,Subsistence UK,Operational Delivery,Redfern Travel Ltd,61924,806.03,ACCOM & OTHER CHARGES,BD1 3AZ,Programme
Food Standards Agency,Food Standards Agency,25/07/2013,Travel UK ,Planning and Performance,Redfern Travel Ltd,61924,683.47,ACCOM & OTHER CHARGES,BD1 3AZ,Admin
Food Standards Agency,Food Standards Agency,25/07/2013,Subsistence UK,Planning and Performance,Redfern Travel Ltd,61924,357.98,ACCOM & OTHER CHARGES,BD1 3AZ,Admin
Food Standards Agency,Food Standards Agency,25/07/2013,Travel UK ,Procurement,Redfern Travel Ltd,61924,856.03,ACCOM & OTHER CHARGES,BD1 3AZ,Admin
Food Standards Agency,Food Standards Agency,25/07/2013,Subsistence UK,Procurement,Redfern Travel Ltd,61924,307.12,ACCOM & OTHER CHARGES,BD1 3AZ,Admin
Food Standards Agency,Food Standards Agency,25/07/2013,Subsistence UK,Procurement,Redfern Travel Ltd,61924,188.1,ACCOM & OTHER CHARGES,BD1 3AZ,Admin
Food Standards Agency,Food Standards Agency,25/07/2013,Travel UK ,Radiation & Residues,Redfern Travel Ltd,61924,112.05,ACCOM & OTHER CHARGES,BD1 3AZ,Admin
Food Standards Agency,Food Standards Agency,25/07/2013,Travel UK ,Security & Estates,Redfern Travel Ltd,61924,-24.58,ACCOM & OTHER CHARGES,BD1 3AZ,Admin
Food Standards Agency,Food Standards Agency,25/07/2013,International Travel,Standards Branch,Redfern Travel Ltd,61924,-3.54,ACCOM & OTHER CHARGES,BD1 3AZ,Admin
Food Standards Agency,Food Standards Agency,25/07/2013,Travel UK ,Wine Standards,Redfern Travel Ltd,61924,135.17,ACCOM & OTHER CHARGES,BD1 3AZ,Programme
Food Standards Agency,Food Standards Agency,25/07/2013,Subsistence UK,Wine Standards,Redfern Travel Ltd,61924,218.16,ACCOM & OTHER CHARGES,BD1 3AZ,Programme
Food Standards Agency,Food Standards Agency,29/07/2013,Project Programme expenditure,Comms Directors Office,Cabinet Office,250007482,"24,700.00",PO 414066 MEDIA MONITORING,CF14 3UW,Programme
Food Standards Agency,Food Standards Agency,31/07/2013,Project Programme expenditure,Microbiological Food Safety Branch,Leatherhead Food Research,1451550,"12,274.67",PO 411065-PROJECT: FS241043 COMPLETION OF D4 TO D9 .,KT22 7RY,Programme
Food Standards Agency,Food Standards Agency,31/07/2013,Project Programme expenditure,Microbiological Food Safety Branch,Leatherhead Food Research,1451550,"10,000.00",PO 411065-PROJECT: FS241043 COMPLETION OF D4 TO D9 .,KT22 7RY,Programme
Food Standards Agency,Food Standards Agency,31/07/2013,Project Programme expenditure,Microbiological Food Safety Branch,Leatherhead Food Research,1451550,"2,454.93",PO 411065-PROJECT: FS241043 COMPLETION OF D4 TO D9 .,KT22 7RY,Programme
Food Standards Agency,Food Standards Agency,31/07/2013,Project Programme expenditure,Microbiological Food Safety Branch,Leatherhead Food Research,1451550,"2,000.00",PO 411065-PROJECT: FS241043 COMPLETION OF D4 TO D9 .,KT22 7RY,Programme
Food Standards Agency,Food Standards Agency,31/07/2013,Programme Evidence & Research Expenditure,Novel Food Unit,National Institute of Biology,190713,"66,284.00",FT13016 D1.2/D1.3 QUARTERLY PAYMENT 30 JUNE 2013,SI-1000,Programme
"Date Run: 14-AUG-13 02.32.28 PM --- Company Code : '17' , Payment Start Date : '01-JUL-2013' , Payment End Date : '31-JUL-2013'",,,,,,,,,,
